Workbook

Sheet MENU
G3: PROCEDURA EXCEL realizzata da | L3: GIQC | N3: UTILITY per GESTIONE INCASSI QUOTE CONDOMINIALI
G4: ing. Pietro CHIEFARI | N4: versione 2.04
G5: Viale CUTURELLA 2/D - 88068 SOVERATO (CZ) | L5: www.piasoft.it
G6: piasoft@piasoft.it
F16: I pulsanti di sopra attivano le seguenti funzionie: NOTE SULLA QUIETANZA - Viasualizzazione prospetto con note giuridiche e pratiche sul rilascio delle quietanze per il pagamento di quote condominiali. DATI CONDOMINIO - Visualizzazzione prospetto input dati concernenti il condominio e l'esercizio. Occorre inserire nel prospetto i dati sovrascrivendo quelli presenti indicativi del tipo di dato richiesto dalla procedura e scrivendo quelli mancanti secondo quanto indicato dalle intestazioni delle colonne. Il numero massimo di condomini è 99. MODULO QUIETANZA - Viasualizzazione del modulo della quietanza Possono essere essere variate l'immagine della firma e tutte le altre scritte in nero. I campi, ovvero i range con sfondo celeste chiaro non possono essere spostati, ovvero non possono essere variati gli indicativi di riga e colonna. SITUAZIONE CONTABILE INIZIO ESERCIZIO - Viasualizzazione del prospetto della situazione contabile dei condomini ad inizio esercizio. Occorre inserire nel prospetto i dati richiesti dalla procedura, secondo quanto indicato dalle intestazioni delle colonne. REGISTRAZIONE INCASSO - È avviata la funzione di registrazione dell'incasso di un versamento di quote sul registro degli incassi, fornendo i dati occorenti in una maschera che la funzione visualizza. Dopo la registrazione viene proposta la stampa su carta o PDF della quietanza. COMPILAZIONE RICEVUTA - È avviata la funzione di compilazione della ricevuta relativa ad una registrazione del registro incassi e indicata in una maschera che la funzione visualizza. REGISTRO INCASSI - Viasualizzazione del prospetto del registro degli incassi. SITUAZIONE CONTABILE ESERCIZIO - Viasualizzazione del prospetto della situazione contabile dei condomini nel corso di esercizio.
F33: La procedura è realizzata per un numero massimo di 1.000 registrazioni. All'occorrenza è possibile inserire nel prospetto del foglio "REGISTRO" ulteriori ri righe fino ad un massimo di 1.000.

Sheet Ricevuta (hidden)
A1: " | B1: ---------------------------------------------------------------------------------------------------------------------------------------------------------------------------------------------------------------------------------------------------------------------------------------------------------------------------------------------------------------------------------------------
B2: ---------------------------------------------------------------------------------------------------------------------------------------------------------------------------------- | J2: ---------------------------------------------------------------------------------------------------------------------------------------------------------------------------------- | AA2: ----------------------------------------------------------------------------------------------------------------------------------------------------------------------------------
D3: =L3 -> Condominio "PIPPO PIPPO" | L3: ='DATI-CONDOMINIO'!A4 -> Condominio "PIPPO PIPPO"
D4: =L4 -> Via GIULIO CESARE, 44 | L4: ='DATI-CONDOMINIO'!A5 -> Via GIULIO CESARE, 44
D5: =L5 -> 88068 - SOVERATO (CZ) | L5: ='DATI-CONDOMINIO'!A6 -> 88068 - SOVERATO (CZ)
D6: =L6 -> CF: 80000000796 | L6: ='DATI-CONDOMINIO'!A7 -> CF: 80000000796
D9: MATRICE della RICEVUTA n. | F9: =O9 -> 17/2021 | G9: Data | H9: =T9 -> 2021-10-10 | M9: RICEVUTA n. | O9: 17/2021 | S9: Data | T9: 2021-10-10
D12: Condomino | L12: Ricevuti dal Condomino | R12: Condomino-01
D13: =R12 -> Condomino-01 | R13: Via TORINO, 20
R14: 83100 - AVELLINO (AV)
D17: IMPORTO TOTALE PAGAMENTO | G17: =H25 -> 40 | L17: € | M17: =IF(W25<>0,NumeroInLettere(W25,2),"") -> quaranta / 00
D19: Causale | L19: per
D20: =L20 -> in conto quote esercizio | H20: =W20 -> 40 | L20: in conto quote esercizio | W20: 40
D21: =L21 -> 0 | H21: =W21 -> 0
D22: =L22 -> 0 | H22: =W22 -> 0
D23: =L23 -> 0 | H23: =W23 -> 0
D24: =L24 -> 0 | H24: =W24 -> 0
F25: TOTALE | H25: =SUM(H20:H24) -> 40 | T25: TOTALE RICEVUTO | W25: =SUM(W20:Y24) -> 40
D26: Metodo di Pagamento | L26: Metodo di Pagamento
D27: =O27 -> contante | O27: contante
L29: firma dell'Amministratore | S29: La presente ricevuta viene rilasciata s.b.f. degli assegni e con riserva di esigere ogni altra somma che risultasse dovuta in seguito a rendiconto consuntivo, nuovi accertamenti, nuove delibere dell'Assemblea o rate pregresse non pagate.
A30: " | B30: ---------------------------------------------------------------------------------------------------------------------------------------------------------------------------------------------------------------------------------------------------------------------------------------------------------------------------------------------------------------------------------------------

Sheet MODULO-RICEVUTA (hidden)
A1: " | B1: ---------------------------------------------------------------------------------------------------------------------------------------------------------------------------------------------------------------------------------------------------------------------------------------------------------------------------------------------------------------------------------------------
B2: ---------------------------------------------------------------------------------------------------------------------------------------------------------------------------------- | J2: ---------------------------------------------------------------------------------------------------------------------------------------------------------------------------------- | AA2: ----------------------------------------------------------------------------------------------------------------------------------------------------------------------------------
D3: =L3 -> Condominio "PIPPO PIPPO" | L3: ='DATI-CONDOMINIO'!A4 -> Condominio "PIPPO PIPPO"
D4: =L4 -> Via GIULIO CESARE, 44 | L4: ='DATI-CONDOMINIO'!A5 -> Via GIULIO CESARE, 44
D5: =L5 -> 88068 - SOVERATO (CZ) | L5: ='DATI-CONDOMINIO'!A6 -> 88068 - SOVERATO (CZ)
D6: =L6 -> CF: 80000000796 | L6: ='DATI-CONDOMINIO'!A7 -> CF: 80000000796
D9: MATRICE della RICEVUTA n. | F9: =O9 -> 0 | G9: Data | H9: =T9 -> 00:00:00 | M9: RICEVUTA n. | S9: Data
D12: Condomino | L12: Ricevuti dal Condomino
D13: =R12 -> 0
D17: IMPORTO TOTALE PAGAMENTO | G17: =H25 -> 0 | L17: € | M17: =IF(W25<>0,NumeroInLettere(W25,2),"") -> 
D19: Causale | L19: per
D20: =L20 -> 0 | H20: =W20 -> 0
D21: =L21 -> 0 | H21: =W21 -> 0
D22: =L22 -> 0 | H22: =W22 -> 0
D23: =L23 -> 0 | H23: =W23 -> 0
D24: =L24 -> 0 | H24: =W24 -> 0
F25: TOTALE | H25: =SUM(H20:H24) -> 0 | T25: TOTALE RICEVUTO | W25: =SUM(W20:Y24) -> 0
D26: Metodo di Pagamento | L26: Metodo di Pagamento
D27: =O27 -> 0
L29: firma dell'Amministratore | S29: La presente ricevuta viene rilasciata s.b.f. degli assegni e con riserva di esigere ogni altra somma che risultasse dovuta in seguito a rendiconto consuntivo, nuovi accertamenti, nuove delibere dell'Assemblea o rate pregresse non pagate.
A30: " | B30: ---------------------------------------------------------------------------------------------------------------------------------------------------------------------------------------------------------------------------------------------------------------------------------------------------------------------------------------------------------------------------------------------

Sheet DATI-CONDOMINIO (hidden)
A1: È consentito variare solo i dati delle celle con sfondo bianco. Numero massimo condomini = 99 | G1: 0
A4: Condominio "PIPPO PIPPO"
A5: Via GIULIO CESARE, 44
A6: 88068 - SOVERATO (CZ)
A7: CF: 80000000796
A8: Esercizio: 2021
A9: Codice Cond. | B9: DENOMINAZIONE CONDOMINO | C9: INDIRIZZO | D9: CAP | E9: CITTÀ | F9: PROVINCIA
A11: C01 | B11: Condomino-01 | C11: Via TORINO, 20 | D11: 83100 | E11: AVELLINO | F11: AV
A12: C02 | B12: Condomino-02 | C12: Via GIULIO CESARE, 44 | D12: 88068 | E12: SOVERATO | F12: CZ
A13: C03 | B13: Condomino-03 | C13: Via GIULIO CESARE, 44 | D13: 88068 | E13: SOVERATO | F13: CZ
A14: C04 | B14: Condomino-04 | C14: Via GIULIO CESARE, 44 | D14: 88068 | E14: SOVERATO | F14: CZ
A15: C05 | B15: Condomino-05 | C15: Via GIULIO CESARE, 44 | D15: 88068 | E15: SOVERATO | F15: CZ
A16: C06 | B16: Condomino-06 | C16: Via GIULIO CESARE, 44 | D16: 88068 | E16: SOVERATO | F16: CZ
A17: C07 | B17: Condomino-07 | C17: Via GIULIO CESARE, 44 | D17: 88068 | E17: SOVERATO | F17: CZ
A18: C08 | B18: Condomino-08 | C18: Via TIRANA, 47 | D18: 87100 | E18: COSENZA | F18: CS
A19: C09 | B19: Condomino-09 | C19: Via GIULIO CESARE, 44 | D19: 88068 | E19: SOVERATO | F19: CZ
A20: C10 | B20: Condomino-10 | C20: Via GIULIO CESARE, 44 | D20: 88068 | E20: SOVERATO | F20: CZ
A21: C11 | B21: Condomino-11 | C21: Via GIULIO CESARE, 44 | D21: 88068 | E21: SOVERATO | F21: CZ
A22: C12 | B22: Condomino-12 | C22: Viale dei GLICINI, 22 | D22: 88068 | E22: SOVERATO | F22: CZ
A23: C13 | B23: Condomino-13 | C23: Via MILANO, 37 | D23: 88068 | E23: SOVERATO | F23: CZ
A24: C14 | B24: Condomino-14 | C24: Via GIULIO CESARE, 44 | D24: 88068 | E24: SOVERATO | F24: CZ
A25: C15 | B25: Condomino-15 | C25: Via GIULIO CESARE, 44 | D25: 88068 | E25: SOVERATO | F25: CZ
A26: C16 | B26: Condomino-16 | C26: Via G. MAMELI, 34 | D26: 47921 | E26: RIMINI | F26: RN
A27: C17 | B27: Condomino-17 | C27: Via GIULIO CESARE, 44 | D27: 88068 | E27: SOVERATO | F27: CZ
A28: C18 | B28: Condomino-18 | C28: Via GIULIO CESARE, 44 | D28: 88068 | E28: SOVERATO | F28: CZ
A29: C19 | B29: Condomino-19 | C29: Via GIULIO CESARE, 44 | D29: 88068 | E29: SOVERATO | F29: CZ
A30: C20 | B30: Condomino-20 | C30: Via GIULIO CESARE, 44 | D30: 88068 | E30: SOVERATO | F30: CZ
A31: C21 | B31: Condomino-21 | C31: Via GIULIO CESARE, 44 | D31: 88068 | E31: SOVERATO | F31: CZ
A32: C22 | B32: Condomino-22 | C32: Via GIULIO CESARE, 44 | D32: 88068 | E32: SOVERATO | F32: CZ
A33: C23 | B33: Condomino-23 | C33: Via GIULIO CESARE, 44 | D33: 88068 | E33: SOVERATO | F33: CZ
A34: C24 | B34: Condomino-24 | C34: Via GENOVA, 14 | D34: 10136 | E34: TORINO | F34: TO
A35: C25
A36: C26
A37: C27
A38: C28
A39: C29
A40: C30
A41: C31
A42: C32
A43: C33
A44: C34
A45: C35
A46: C36
A47: C37
A48: C38
A49: C39
A50: C40
A51: C41
A52: C42
A53: C43
A54: C44
A55: C45
A56: C46
A57: C47
A58: C48
A59: C49
A60: C50
A61: C51
A62: C52
A63: C53
A64: C54
A65: C55
A66: C56
A67: C57
A68: C58
A69: C59
A70: C60
A71: C61
A72: C62
A73: C63
A74: C64
A75: C65
A76: C66
A77: C67
A78: C68
A79: C69
A80: C70
A81: C71
A82: C72
A83: C73
A84: C74
A85: C75
A86: C76
A87: C77
A88: C78
A89: C79
A90: C80
A91: C81
A92: C82
A93: C83
A94: C84
A95: C85
A96: C86
A97: C87
A98: C88
A99: C89
A100: C90
A101: C91
A102: C92
A103: C93
A104: C94
A105: C95
A106: C96
A107: C97
A108: C98
A109: C99
A111: 0 | G111: 0

Sheet SCI (hidden)
A1: È consentito variare solo i dati delle celle con sfondo bianco. Numero massimo condomini = 99
A6: ='DATI-CONDOMINIO'!A4 -> Condominio "PIPPO PIPPO"
A7: ='DATI-CONDOMINIO'!A8 -> Esercizio: 2021
A8: SITUAZIONE CONTABILE DEI CONDOMINI AD INIZIO ESERCIZIO
A9: n. | B9: Codice Condomino | C9: CONDOMINO | D9: ARRETRATO | E9: ARRETRATO | F9: ARRETRATO | G9: CONGUAGLIO ESERCIZIO PRECEDENTE | H9: QUOTA ESERCIZIO IN CORSO | I9: TOTALE
D10: =E10-1 -> 2017 | E10: =F10-1 -> 2018 | F10: =G10-1 -> 2019 | G10: =H10-1 -> 2020 | H10: =RIGHT('DATI-CONDOMINIO'!A8,4) -> 2021
A11: 1 | B11: ='DATI-CONDOMINIO'!A11 -> C01 | C11: ='DATI-CONDOMINIO'!B11 -> Condomino-01 | F11: 0 | G11: 0 | H11: 471.94 | I11: =SUM(D11:H11) -> 471.94
A12: 2 | B12: ='DATI-CONDOMINIO'!A12 -> C02 | C12: ='DATI-CONDOMINIO'!B12 -> Condomino-02 | F12: 0 | G12: 0 | H12: 566.33 | I12: =SUM(D12:H12) -> 566.33
A13: 3 | B13: ='DATI-CONDOMINIO'!A13 -> C03 | C13: ='DATI-CONDOMINIO'!B13 -> Condomino-03 | F13: 0 | G13: 115 | H13: 539.85 | I13: 654.85
A14: 4 | B14: ='DATI-CONDOMINIO'!A14 -> C04 | C14: ='DATI-CONDOMINIO'!B14 -> Condomino-04 | F14: 608.33 | G14: 399.61 | H14: 428.93 | I14: 1436.87
A15: 5 | B15: ='DATI-CONDOMINIO'!A15 -> C05 | C15: ='DATI-CONDOMINIO'!B15 -> Condomino-05 | F15: 0 | G15: 0 | H15: 531.89 | I15: 531.89
A16: 6 | B16: ='DATI-CONDOMINIO'!A16 -> C06 | C16: ='DATI-CONDOMINIO'!B16 -> Condomino-06 | F16: 255.62 | G16: 470.07 | H16: 504.56 | I16: 1230.25
A17: 7 | B17: ='DATI-CONDOMINIO'!A17 -> C07 | C17: ='DATI-CONDOMINIO'!B17 -> Condomino-07 | F17: 0 | G17: 0 | H17: 362.72 | I17: 362.72
A18: 8 | B18: ='DATI-CONDOMINIO'!A18 -> C08 | C18: ='DATI-CONDOMINIO'!B18 -> Condomino-08 | F18: 0 | G18: 0 | H18: 444.05 | I18: 444.05
A19: 9 | B19: ='DATI-CONDOMINIO'!A19 -> C09 | C19: ='DATI-CONDOMINIO'!B19 -> Condomino-09 | F19: 0 | G19: 100.91 | H19: 421.77 | I19: 522.68
A20: 10 | B20: ='DATI-CONDOMINIO'!A20 -> C10 | C20: ='DATI-CONDOMINIO'!B20 -> Condomino-10 | F20: 0 | G20: 0 | H20: 271.21 | I20: 271.21
A21: 11 | B21: ='DATI-CONDOMINIO'!A21 -> C11 | C21: ='DATI-CONDOMINIO'!B21 -> Condomino-11 | F21: 0 | G21: 0 | H21: 347.59 | I21: 347.59
A22: 12 | B22: ='DATI-CONDOMINIO'!A22 -> C12 | C22: ='DATI-CONDOMINIO'!B22 -> Condomino-12 | F22: 0 | G22: 0 | H22: 250.91 | I22: 250.91
A23: 13 | B23: ='DATI-CONDOMINIO'!A23 -> C13 | C23: ='DATI-CONDOMINIO'!B23 -> Condomino-13 | F23: 0 | G23: 0 | H23: 91.01 | I23: 91.01
A24: 14 | B24: ='DATI-CONDOMINIO'!A24 -> C14 | C24: ='DATI-CONDOMINIO'!B24 -> Condomino-14 | F24: 0 | G24: 0 | H24: 291.24 | I24: 291.24
A25: 15 | B25: ='DATI-CONDOMINIO'!A25 -> C15 | C25: ='DATI-CONDOMINIO'!B25 -> Condomino-15 | F25: 0 | G25: 697.39 | H25: 696.18 | I25: 1393.57
A26: 16 | B26: ='DATI-CONDOMINIO'!A26 -> C16 | C26: ='DATI-CONDOMINIO'!B26 -> Condomino-16 | F26: 0 | G26: 148.9 | H26: 634.39 | I26: 783.29
A27: 17 | B27: ='DATI-CONDOMINIO'!A27 -> C17 | C27: ='DATI-CONDOMINIO'!B27 -> Condomino-17 | F27: 0 | G27: 312.1 | H27: 499.39 | I27: 811.49
A28: 18 | B28: ='DATI-CONDOMINIO'!A28 -> C18 | C28: ='DATI-CONDOMINIO'!B28 -> Condomino-18 | F28: 0 | G28: 0 | H28: 583.06 | I28: 583.06
A29: 19 | B29: ='DATI-CONDOMINIO'!A29 -> C19 | C29: ='DATI-CONDOMINIO'!B29 -> Condomino-19 | F29: 0 | G29: 0 | H29: 477.12 | I29: 477.12
A30: 20 | B30: ='DATI-CONDOMINIO'!A30 -> C20 | C30: ='DATI-CONDOMINIO'!B30 -> Condomino-20 | F30: 0 | G30: 179.04 | H30: 510.17 | I30: 689.21
A31: 21 | B31: ='DATI-CONDOMINIO'!A31 -> C21 | C31: ='DATI-CONDOMINIO'!B31 -> Condomino-21 | F31: 0 | G31: 0 | H31: 384.76 | I31: 384.76
A32: 22 | B32: ='DATI-CONDOMINIO'!A32 -> C22 | C32: ='DATI-CONDOMINIO'!B32 -> Condomino-22 | F32: 175.82 | G32: 350.13 | H32: 388.46 | I32: 914.41
A33: 23 | B33: ='DATI-CONDOMINIO'!A33 -> C23 | C33: ='DATI-CONDOMINIO'!B33 -> Condomino-23 | F33: 0 | G33: 0 | H33: 303.75 | I33: 303.75
A34: 24 | B34: ='DATI-CONDOMINIO'!A34 -> C24 | C34: ='DATI-CONDOMINIO'!B34 -> Condomino-24 | F34: 0 | G34: 0 | H34: 398.72 | I34: 398.72
A35: 25 | B35: ='DATI-CONDOMINIO'!A35 -> C25 | C35: ='DATI-CONDOMINIO'!B35 -> 0 | I35: 0
A36: 26 | B36: ='DATI-CONDOMINIO'!A36 -> C26 | C36: ='DATI-CONDOMINIO'!B36 ->  | I36: 0
A37: 27 | B37: ='DATI-CONDOMINIO'!A37 -> C27 | C37: ='DATI-CONDOMINIO'!B37 ->  | I37: 0
A38: 28 | B38: ='DATI-CONDOMINIO'!A38 -> C28 | C38: ='DATI-CONDOMINIO'!B38 ->  | I38: 0
A39: 29 | B39: ='DATI-CONDOMINIO'!A39 -> C29 | C39: ='DATI-CONDOMINIO'!B39 ->  | I39: 0
A40: 30 | B40: ='DATI-CONDOMINIO'!A40 -> C30 | C40: ='DATI-CONDOMINIO'!B40 ->  | I40: 0
A41: 31 | B41: ='DATI-CONDOMINIO'!A41 -> C31 | C41: ='DATI-CONDOMINIO'!B41 ->  | I41: 0
A42: 32 | B42: ='DATI-CONDOMINIO'!A42 -> C32 | C42: ='DATI-CONDOMINIO'!B42 ->  | I42: 0
A43: 33 | B43: ='DATI-CONDOMINIO'!A43 -> C33 | C43: ='DATI-CONDOMINIO'!B43 ->  | I43: 0
A44: 34 | B44: ='DATI-CONDOMINIO'!A44 -> C34 | C44: ='DATI-CONDOMINIO'!B44 ->  | I44: 0
A45: 35 | B45: ='DATI-CONDOMINIO'!A45 -> C35 | C45: ='DATI-CONDOMINIO'!B45 ->  | I45: 0
A46: 36 | B46: ='DATI-CONDOMINIO'!A46 -> C36 | C46: ='DATI-CONDOMINIO'!B46 ->  | I46: 0
A47: 37 | B47: ='DATI-CONDOMINIO'!A47 -> C37 | C47: ='DATI-CONDOMINIO'!B47 ->  | I47: 0
A48: 38 | B48: ='DATI-CONDOMINIO'!A48 -> C38 | C48: ='DATI-CONDOMINIO'!B48 ->  | I48: 0
A49: 39 | B49: ='DATI-CONDOMINIO'!A49 -> C39 | C49: ='DATI-CONDOMINIO'!B49 ->  | I49: 0
A50: 40 | B50: ='DATI-CONDOMINIO'!A50 -> C40 | C50: ='DATI-CONDOMINIO'!B50 ->  | I50: 0
A51: 41 | B51: ='DATI-CONDOMINIO'!A51 -> C41 | C51: ='DATI-CONDOMINIO'!B51 ->  | I51: 0
A52: 42 | B52: ='DATI-CONDOMINIO'!A52 -> C42 | C52: ='DATI-CONDOMINIO'!B52 ->  | I52: 0
A53: 43 | B53: ='DATI-CONDOMINIO'!A53 -> C43 | C53: ='DATI-CONDOMINIO'!B53 ->  | I53: 0
A54: 44 | B54: ='DATI-CONDOMINIO'!A54 -> C44 | C54: ='DATI-CONDOMINIO'!B54 ->  | I54: 0
A55: 45 | B55: ='DATI-CONDOMINIO'!A55 -> C45 | C55: ='DATI-CONDOMINIO'!B55 ->  | I55: 0
A56: 46 | B56: ='DATI-CONDOMINIO'!A56 -> C46 | C56: ='DATI-CONDOMINIO'!B56 ->  | I56: 0
A57: 47 | B57: ='DATI-CONDOMINIO'!A57 -> C47 | C57: ='DATI-CONDOMINIO'!B57 ->  | I57: 0
A58: 48 | B58: ='DATI-CONDOMINIO'!A58 -> C48 | C58: ='DATI-CONDOMINIO'!B58 ->  | I58: 0
A59: 49 | B59: ='DATI-CONDOMINIO'!A59 -> C49 | C59: ='DATI-CONDOMINIO'!B59 ->  | I59: 0
A60: 50 | B60: ='DATI-CONDOMINIO'!A60 -> C50 | C60: ='DATI-CONDOMINIO'!B60 ->  | I60: 0
A61: 51 | B61: ='DATI-CONDOMINIO'!A61 -> C51 | C61: ='DATI-CONDOMINIO'!B61 ->  | I61: 0
A62: 52 | B62: ='DATI-CONDOMINIO'!A62 -> C52 | C62: ='DATI-CONDOMINIO'!B62 ->  | I62: 0
A63: 53 | B63: ='DATI-CONDOMINIO'!A63 -> C53 | C63: ='DATI-CONDOMINIO'!B63 ->  | I63: 0
A64: 54 | B64: ='DATI-CONDOMINIO'!A64 -> C54 | C64: ='DATI-CONDOMINIO'!B64 ->  | I64: 0
A65: 55 | B65: ='DATI-CONDOMINIO'!A65 -> C55 | C65: ='DATI-CONDOMINIO'!B65 ->  | I65: 0
A66: 56 | B66: ='DATI-CONDOMINIO'!A66 -> C56 | C66: ='DATI-CONDOMINIO'!B66 ->  | I66: 0
A67: 57 | B67: ='DATI-CONDOMINIO'!A67 -> C57 | C67: ='DATI-CONDOMINIO'!B67 ->  | I67: 0
A68: 58 | B68: ='DATI-CONDOMINIO'!A68 -> C58 | C68: ='DATI-CONDOMINIO'!B68 ->  | I68: 0
A69: 59 | B69: ='DATI-CONDOMINIO'!A69 -> C59 | C69: ='DATI-CONDOMINIO'!B69 ->  | I69: 0
A70: 60 | B70: ='DATI-CONDOMINIO'!A70 -> C60 | C70: ='DATI-CONDOMINIO'!B70 ->  | I70: 0
A71: 61 | B71: ='DATI-CONDOMINIO'!A71 -> C61 | C71: ='DATI-CONDOMINIO'!B71 ->  | I71: 0
A72: 62 | B72: ='DATI-CONDOMINIO'!A72 -> C62 | C72: ='DATI-CONDOMINIO'!B72 ->  | I72: 0
A73: 63 | B73: ='DATI-CONDOMINIO'!A73 -> C63 | C73: ='DATI-CONDOMINIO'!B73 ->  | I73: 0
A74: 64 | B74: ='DATI-CONDOMINIO'!A74 -> C64 | C74: ='DATI-CONDOMINIO'!B74 ->  | I74: 0
A75: 65 | B75: ='DATI-CONDOMINIO'!A75 -> C65 | C75: ='DATI-CONDOMINIO'!B75 ->  | I75: 0
A76: 66 | B76: ='DATI-CONDOMINIO'!A76 -> C66 | C76: ='DATI-CONDOMINIO'!B76 ->  | I76: =SUM(D76:H76) -> 0
A77: 67 | B77: ='DATI-CONDOMINIO'!A77 -> C67 | C77: ='DATI-CONDOMINIO'!B77 ->  | I77: 0
A78: 68 | B78: ='DATI-CONDOMINIO'!A78 -> C68 | C78: ='DATI-CONDOMINIO'!B78 ->  | I78: 0
A79: 69 | B79: ='DATI-CONDOMINIO'!A79 -> C69 | C79: ='DATI-CONDOMINIO'!B79 ->  | I79: 0
A80: 70 | B80: ='DATI-CONDOMINIO'!A80 -> C70 | C80: ='DATI-CONDOMINIO'!B80 ->  | I80: 0
A81: 71 | B81: ='DATI-CONDOMINIO'!A81 -> C71 | C81: ='DATI-CONDOMINIO'!B81 ->  | I81: 0
A82: 72 | B82: ='DATI-CONDOMINIO'!A82 -> C72 | C82: ='DATI-CONDOMINIO'!B82 ->  | I82: 0
A83: 73 | B83: ='DATI-CONDOMINIO'!A83 -> C73 | C83: ='DATI-CONDOMINIO'!B83 ->  | I83: 0
A84: 74 | B84: ='DATI-CONDOMINIO'!A84 -> C74 | C84: ='DATI-CONDOMINIO'!B84 ->  | I84: 0
A85: 75 | B85: ='DATI-CONDOMINIO'!A85 -> C75 | C85: ='DATI-CONDOMINIO'!B85 ->  | I85: 0
A86: 76 | B86: ='DATI-CONDOMINIO'!A86 -> C76 | C86: ='DATI-CONDOMINIO'!B86 ->  | I86: 0
A87: 77 | B87: ='DATI-CONDOMINIO'!A87 -> C77 | C87: ='DATI-CONDOMINIO'!B87 ->  | I87: 0
A88: 78 | B88: ='DATI-CONDOMINIO'!A88 -> C78 | C88: ='DATI-CONDOMINIO'!B88 ->  | I88: 0
A89: 79 | B89: ='DATI-CONDOMINIO'!A89 -> C79 | C89: ='DATI-CONDOMINIO'!B89 ->  | I89: 0
A90: 80 | B90: ='DATI-CONDOMINIO'!A90 -> C80 | C90: ='DATI-CONDOMINIO'!B90 ->  | I90: 0
A91: 81 | B91: ='DATI-CONDOMINIO'!A91 -> C81 | C91: ='DATI-CONDOMINIO'!B91 ->  | I91: 0
A92: 82 | B92: ='DATI-CONDOMINIO'!A92 -> C82 | C92: ='DATI-CONDOMINIO'!B92 ->  | I92: 0
A93: 83 | B93: ='DATI-CONDOMINIO'!A93 -> C83 | C93: ='DATI-CONDOMINIO'!B93 ->  | I93: 0
A94: 84 | B94: ='DATI-CONDOMINIO'!A94 -> C84 | C94: ='DATI-CONDOMINIO'!B94 ->  | I94: 0
A95: 85 | B95: ='DATI-CONDOMINIO'!A95 -> C85 | C95: ='DATI-CONDOMINIO'!B95 ->  | I95: 0
A96: 86 | B96: ='DATI-CONDOMINIO'!A96 -> C86 | C96: ='DATI-CONDOMINIO'!B96 ->  | I96: 0
A97: 87 | B97: ='DATI-CONDOMINIO'!A97 -> C87 | C97: ='DATI-CONDOMINIO'!B97 ->  | I97: 0
A98: 88 | B98: ='DATI-CONDOMINIO'!A98 -> C88 | C98: ='DATI-CONDOMINIO'!B98 ->  | I98: 0
A99: 89 | B99: ='DATI-CONDOMINIO'!A99 -> C89 | C99: ='DATI-CONDOMINIO'!B99 ->  | I99: 0
A100: 90 | B100: ='DATI-CONDOMINIO'!A100 -> C90 | C100: ='DATI-CONDOMINIO'!B100 ->  | I100: 0
A101: 91 | B101: ='DATI-CONDOMINIO'!A101 -> C91 | C101: ='DATI-CONDOMINIO'!B101 ->  | I101: 0
A102: 92 | B102: ='DATI-CONDOMINIO'!A102 -> C92 | C102: ='DATI-CONDOMINIO'!B102 ->  | I102: 0
A103: 93 | B103: ='DATI-CONDOMINIO'!A103 -> C93 | C103: ='DATI-CONDOMINIO'!B103 ->  | I103: 0
A104: 94 | B104: ='DATI-CONDOMINIO'!A104 -> C94 | C104: ='DATI-CONDOMINIO'!B104 ->  | I104: 0
A105: 95 | B105: ='DATI-CONDOMINIO'!A105 -> C95 | C105: ='DATI-CONDOMINIO'!B105 ->  | I105: 0
A106: 96 | B106: ='DATI-CONDOMINIO'!A106 -> C96 | C106: ='DATI-CONDOMINIO'!B106 ->  | I106: 0
A107: 97 | B107: ='DATI-CONDOMINIO'!A107 -> C97 | C107: ='DATI-CONDOMINIO'!B107 ->  | I107: 0
A108: 98 | B108: ='DATI-CONDOMINIO'!A108 -> C98 | C108: ='DATI-CONDOMINIO'!B108 ->  | I108: 0
A109: 99 | B109: ='DATI-CONDOMINIO'!A109 -> C99 | C109: ='DATI-CONDOMINIO'!B109 ->  | I109: 0
A110: TOTALI | D110: =SUM(D11:D109) -> 0 | E110: 0 | F110: 1039.77 | G110: 2773.15 | H110: =SUM(H11:H109) -> 10400 | I110: =SUM(I11:I109) -> 14212.92

Sheet REGISTRO (hidden)
A8: ='DATI-CONDOMINIO'!A4 -> Condominio "PIPPO PIPPO"
A9: REGISTRO INCASSO QUOTE CONDOMINIALI
A10: N° Registr. | B10: n° Ricevuta | C10: Data Emissione | D10: Codice Condomino | E10: ="Causale 1" & CHAR(10) & "Quota Annuale " & CHAR(10) & "Esercizio " & SCI!H10 -> Causale 1 Quota Annuale Esercizio 2021 | F10: Importo Causale 1 | G10: ="Causale 2" & CHAR(10) & "Conguaglio " & CHAR(10) & "Esercizio " & SCI!G10 -> Causale 2 Conguaglio Esercizio 2020 | H10: Importo Causale 2 | I10: ="Causale 3" & CHAR(10) & "Arretrato " & CHAR(10) & "Esercizio " & SCI!F10 -> Causale 3 Arretrato Esercizio 2019 | J10: Importo Causale 3 | K10: ="Causale 4" & CHAR(10) & "Arretrato " & CHAR(10) & "Esercizio " & SCI!E10 -> Causale 4 Arretrato Esercizio 2018 | L10: Importo Causale 4 | M10: ="Causale 5" & CHAR(10) & "Arretrato " & CHAR(10) & "Esercizio " & SCI!D10 -> Causale 5 Arretrato Esercizio 2017 | N10: Importo Causale 5 | O10: Metodo di pagamento
A11: 1 | B11: 01/2021 | C11: 10/1/2021 | D11: C15 | E11: in conto quote esercizio 2021 | F11: 23.78 | G11: in conto conguaglio esercizio 2020 | H11: 56.89 | O11: contante
A12: 2 | B12: 02/2021 | C12: 10/1/2021 | D12: C21 | E12: in conto quote esercizio 2021 | F12: 34.78 | O12: assegno UNICREDIT 3284571025
A13: 3 | B13: 03/2021 | C13: 10/1/2021 | D13: C01 | E13: in conto quote esercizio 2021 | F13: 150 | O13: bonifico
A14: 4 | B14: 04/2021 | C14: 10/1/2021 | D14: C06 | G14: in conto conguaglio esercizio 2020 | H14: 54.38 | I14: saldo arretrati esercizio 2019 | J14: 255.62 | O14: contante
A15: 5 | B15: 05/2021 | C15: 11/02/2021 | D15: C16 | E15: in conto quote esercizio 2021 | F15: 51.1 | G15: saldo conguaglio esercizio 2020 | H15: 148.9 | O15: contante
A16: 6 | B16: 06/2021 | C16: 11/02/2021 | D16: C22 | I16: in conto arretrati esercizio 2019 | J16: 120 | O16: contante
A17: 7 | B17: 07/2021 | C17: 11/02/2021 | D17: C23 | E17: in conto quote esercizio 2021 | F17: 25 | O17: contante
A18: 8 | B18: 08/2021 | C18: 11/02/2021 | D18: C24 | E18: in conto quote esercizio 2021 | F18: 100 | O18: contante
A19: 9 | B19: 09/2021 | C19: 11/02/2021 | D19: C07 | E19: in conto quote esercizio 2021 | F19: 62.72 | O19: contante
A20: 10 | B20: 10/2021 | C20: 11/02/2021 | D20: C08 | E20: in conto quote esercizio 2021 | F20: 211 | O20: assegno UNICREDIT 32844577789521
A21: 11 | B21: 11/2021 | C21: 11/02/2021 | D21: C01 | E21: in conto quote esercizio 2021 | F21: 21 | O21: contante
A22: 12 | B22: 12/2021 | C22: 11/02/2021 | D22: C01 | E22: in conto quote esercizio 2021 | F22: 45 | O22: contante
A23: 13 | B23: 13/2021 | C23: 10/05/2021 | D23: C01 | E23: in conto quote esercizio 2021 | F23: 15 | O23: contante
A24: 14 | B24: 14/2021 | C24: 10/05/2021 | D24: C22 | G24: in conto conguaglio esercizio 2020 | H24: 44.18 | I24: saldo arretrati esercizio 2019 | J24: 55.82 | O24: contante
A25: 15 | B25: 15/2021 | C25: 2021-11-10 | D25: C01 | E25: in conto quote esercizio | F25: 40 | O25: contante
A26: 16 | B26: 16/2021 | C26: 2021-12-09 | D26: C01 | E26: in conto quote esercizio | F26: 40 | O26: contante
A27: 17 | B27: 17/2021 | C27: 2021-10-10 | D27: C01 | E27: in conto quote esercizio | F27: 40 | O27: contante
A51: Fine

Sheet SCE (hidden)
A1: È consentito variare solo i dati delle celle con sfondo bianco. Numero massimo condomini = 99
A6: ='DATI-CONDOMINIO'!A4 -> Condominio "PIPPO PIPPO"
A7: ='DATI-CONDOMINIO'!A8 -> Esercizio: 2021
A8: SITUAZIONE CONTABILE DEI CONDOMINI
A9: n. | B9: Codice Condomino | C9: CONDOMINO | D9: ARRETRATO | E9: ARRETRATO | F9: ARRETRATO | G9: CONGUAGLIO ESERCIZIO PRECEDENTE | H9: QUOTA ESERCIZIO IN CORSO | I9: TOTALE
D10: =SCI!D10 -> 2017 | E10: =SCI!E10 -> 2018 | F10: =SCI!F10 -> 2019 | G10: =SCI!G10 -> 2020 | H10: =SCI!H10 -> 2021
A11: 1 | B11: ='DATI-CONDOMINIO'!A11 -> C01 | C11: ='DATI-CONDOMINIO'!B11 -> Condomino-01 | D11: =SCI!D11-SUMIFS(REGISTRO!$N$11:$N$1011,REGISTRO!$D$11:$D$1011,B11) -> 0 | E11: =SCI!E11-SUMIFS(REGISTRO!$L$11:$L$1011,REGISTRO!$D$11:$D$1011,B11) -> 0 | F11: =SCI!F11-SUMIFS(REGISTRO!$J$11:$J$1011,REGISTRO!$D$11:$D$1011,B11) -> 0 | G11: =SCI!G11-SUMIFS(REGISTRO!$H$11:$H$1011,REGISTRO!$D$11:$D$1011,B11) -> 0 | H11: =SCI!H11-SUMIFS(REGISTRO!$F$11:$F$1011,REGISTRO!$D$11:$D$1011,B11) -> 120.94 | I11: =SUM(D11:H11) -> 120.94
A12: 2 | B12: ='DATI-CONDOMINIO'!A12 -> C02 | C12: ='DATI-CONDOMINIO'!B12 -> Condomino-02 | D12: =SCI!D12-SUMIFS(REGISTRO!$N$11:$N$1011,REGISTRO!$D$11:$D$1011,B12) -> 0 | E12: =SCI!E12-SUMIFS(REGISTRO!$L$11:$L$1011,REGISTRO!$D$11:$D$1011,B12) -> 0 | F12: =SCI!F12-SUMIFS(REGISTRO!$J$11:$J$1011,REGISTRO!$D$11:$D$1011,B12) -> 0 | G12: =SCI!G12-SUMIFS(REGISTRO!$H$11:$H$1011,REGISTRO!$D$11:$D$1011,B12) -> 0 | H12: =SCI!H12-SUMIFS(REGISTRO!$F$11:$F$1011,REGISTRO!$D$11:$D$1011,B12) -> 566.33 | I12: =SUM(D12:H12) -> 566.33
A13: 3 | B13: ='DATI-CONDOMINIO'!A13 -> C03 | C13: ='DATI-CONDOMINIO'!B13 -> Condomino-03 | D13: =SCI!D13-SUMIFS(REGISTRO!$N$11:$N$1011,REGISTRO!$D$11:$D$1011,B13) -> 0 | E13: =SCI!E13-SUMIFS(REGISTRO!$L$11:$L$1011,REGISTRO!$D$11:$D$1011,B13) -> 0 | F13: =SCI!F13-SUMIFS(REGISTRO!$J$11:$J$1011,REGISTRO!$D$11:$D$1011,B13) -> 0 | G13: =SCI!G13-SUMIFS(REGISTRO!$H$11:$H$1011,REGISTRO!$D$11:$D$1011,B13) -> 115 | H13: =SCI!H13-SUMIFS(REGISTRO!$F$11:$F$1011,REGISTRO!$D$11:$D$1011,B13) -> 539.85 | I13: 654.85
A14: 4 | B14: ='DATI-CONDOMINIO'!A14 -> C04 | C14: ='DATI-CONDOMINIO'!B14 -> Condomino-04 | D14: =SCI!D14-SUMIFS(REGISTRO!$N$11:$N$1011,REGISTRO!$D$11:$D$1011,B14) -> 0 | E14: =SCI!E14-SUMIFS(REGISTRO!$L$11:$L$1011,REGISTRO!$D$11:$D$1011,B14) -> 0 | F14: =SCI!F14-SUMIFS(REGISTRO!$J$11:$J$1011,REGISTRO!$D$11:$D$1011,B14) -> 608.33 | G14: =SCI!G14-SUMIFS(REGISTRO!$H$11:$H$1011,REGISTRO!$D$11:$D$1011,B14) -> 399.61 | H14: =SCI!H14-SUMIFS(REGISTRO!$F$11:$F$1011,REGISTRO!$D$11:$D$1011,B14) -> 428.93 | I14: 1436.87
A15: 5 | B15: ='DATI-CONDOMINIO'!A15 -> C05 | C15: ='DATI-CONDOMINIO'!B15 -> Condomino-05 | D15: =SCI!D15-SUMIFS(REGISTRO!$N$11:$N$1011,REGISTRO!$D$11:$D$1011,B15) -> 0 | E15: =SCI!E15-SUMIFS(REGISTRO!$L$11:$L$1011,REGISTRO!$D$11:$D$1011,B15) -> 0 | F15: =SCI!F15-SUMIFS(REGISTRO!$J$11:$J$1011,REGISTRO!$D$11:$D$1011,B15) -> 0 | G15: =SCI!G15-SUMIFS(REGISTRO!$H$11:$H$1011,REGISTRO!$D$11:$D$1011,B15) -> 0 | H15: =SCI!H15-SUMIFS(REGISTRO!$F$11:$F$1011,REGISTRO!$D$11:$D$1011,B15) -> 531.89 | I15: 531.89
A16: 6 | B16: ='DATI-CONDOMINIO'!A16 -> C06 | C16: ='DATI-CONDOMINIO'!B16 -> Condomino-06 | D16: =SCI!D16-SUMIFS(REGISTRO!$N$11:$N$1011,REGISTRO!$D$11:$D$1011,B16) -> 0 | E16: =SCI!E16-SUMIFS(REGISTRO!$L$11:$L$1011,REGISTRO!$D$11:$D$1011,B16) -> 0 | F16: =SCI!F16-SUMIFS(REGISTRO!$J$11:$J$1011,REGISTRO!$D$11:$D$1011,B16) -> 0 | G16: =SCI!G16-SUMIFS(REGISTRO!$H$11:$H$1011,REGISTRO!$D$11:$D$1011,B16) -> 415.69 | H16: =SCI!H16-SUMIFS(REGISTRO!$F$11:$F$1011,REGISTRO!$D$11:$D$1011,B16) -> 504.56 | I16: 920.25
A17: 7 | B17: ='DATI-CONDOMINIO'!A17 -> C07 | C17: ='DATI-CONDOMINIO'!B17 -> Condomino-07 | D17: =SCI!D17-SUMIFS(REGISTRO!$N$11:$N$1011,REGISTRO!$D$11:$D$1011,B17) -> 0 | E17: =SCI!E17-SUMIFS(REGISTRO!$L$11:$L$1011,REGISTRO!$D$11:$D$1011,B17) -> 0 | F17: =SCI!F17-SUMIFS(REGISTRO!$J$11:$J$1011,REGISTRO!$D$11:$D$1011,B17) -> 0 | G17: =SCI!G17-SUMIFS(REGISTRO!$H$11:$H$1011,REGISTRO!$D$11:$D$1011,B17) -> 0 | H17: =SCI!H17-SUMIFS(REGISTRO!$F$11:$F$1011,REGISTRO!$D$11:$D$1011,B17) -> 300 | I17: 300
A18: 8 | B18: ='DATI-CONDOMINIO'!A18 -> C08 | C18: ='DATI-CONDOMINIO'!B18 -> Condomino-08 | D18: =SCI!D18-SUMIFS(REGISTRO!$N$11:$N$1011,REGISTRO!$D$11:$D$1011,B18) -> 0 | E18: =SCI!E18-SUMIFS(REGISTRO!$L$11:$L$1011,REGISTRO!$D$11:$D$1011,B18) -> 0 | F18: =SCI!F18-SUMIFS(REGISTRO!$J$11:$J$1011,REGISTRO!$D$11:$D$1011,B18) -> 0 | G18: =SCI!G18-SUMIFS(REGISTRO!$H$11:$H$1011,REGISTRO!$D$11:$D$1011,B18) -> 0 | H18: =SCI!H18-SUMIFS(REGISTRO!$F$11:$F$1011,REGISTRO!$D$11:$D$1011,B18) -> 233.05 | I18: 233.05
A19: 9 | B19: ='DATI-CONDOMINIO'!A19 -> C09 | C19: ='DATI-CONDOMINIO'!B19 -> Condomino-09 | D19: =SCI!D19-SUMIFS(REGISTRO!$N$11:$N$1011,REGISTRO!$D$11:$D$1011,B19) -> 0 | E19: =SCI!E19-SUMIFS(REGISTRO!$L$11:$L$1011,REGISTRO!$D$11:$D$1011,B19) -> 0 | F19: =SCI!F19-SUMIFS(REGISTRO!$J$11:$J$1011,REGISTRO!$D$11:$D$1011,B19) -> 0 | G19: =SCI!G19-SUMIFS(REGISTRO!$H$11:$H$1011,REGISTRO!$D$11:$D$1011,B19) -> 100.91 | H19: =SCI!H19-SUMIFS(REGISTRO!$F$11:$F$1011,REGISTRO!$D$11:$D$1011,B19) -> 421.77 | I19: 522.68
A20: 10 | B20: ='DATI-CONDOMINIO'!A20 -> C10 | C20: ='DATI-CONDOMINIO'!B20 -> Condomino-10 | D20: =SCI!D20-SUMIFS(REGISTRO!$N$11:$N$1011,REGISTRO!$D$11:$D$1011,B20) -> 0 | E20: =SCI!E20-SUMIFS(REGISTRO!$L$11:$L$1011,REGISTRO!$D$11:$D$1011,B20) -> 0 | F20: =SCI!F20-SUMIFS(REGISTRO!$J$11:$J$1011,REGISTRO!$D$11:$D$1011,B20) -> 0 | G20: =SCI!G20-SUMIFS(REGISTRO!$H$11:$H$1011,REGISTRO!$D$11:$D$1011,B20) -> 0 | H20: =SCI!H20-SUMIFS(REGISTRO!$F$11:$F$1011,REGISTRO!$D$11:$D$1011,B20) -> 271.21 | I20: 271.21
A21: 11 | B21: ='DATI-CONDOMINIO'!A21 -> C11 | C21: ='DATI-CONDOMINIO'!B21 -> Condomino-11 | D21: =SCI!D21-SUMIFS(REGISTRO!$N$11:$N$1011,REGISTRO!$D$11:$D$1011,B21) -> 0 | E21: =SCI!E21-SUMIFS(REGISTRO!$L$11:$L$1011,REGISTRO!$D$11:$D$1011,B21) -> 0 | F21: =SCI!F21-SUMIFS(REGISTRO!$J$11:$J$1011,REGISTRO!$D$11:$D$1011,B21) -> 0 | G21: =SCI!G21-SUMIFS(REGISTRO!$H$11:$H$1011,REGISTRO!$D$11:$D$1011,B21) -> 0 | H21: =SCI!H21-SUMIFS(REGISTRO!$F$11:$F$1011,REGISTRO!$D$11:$D$1011,B21) -> 347.59 | I21: 347.59
A22: 12 | B22: ='DATI-CONDOMINIO'!A22 -> C12 | C22: ='DATI-CONDOMINIO'!B22 -> Condomino-12 | D22: =SCI!D22-SUMIFS(REGISTRO!$N$11:$N$1011,REGISTRO!$D$11:$D$1011,B22) -> 0 | E22: =SCI!E22-SUMIFS(REGISTRO!$L$11:$L$1011,REGISTRO!$D$11:$D$1011,B22) -> 0 | F22: =SCI!F22-SUMIFS(REGISTRO!$J$11:$J$1011,REGISTRO!$D$11:$D$1011,B22) -> 0 | G22: =SCI!G22-SUMIFS(REGISTRO!$H$11:$H$1011,REGISTRO!$D$11:$D$1011,B22) -> 0 | H22: =SCI!H22-SUMIFS(REGISTRO!$F$11:$F$1011,REGISTRO!$D$11:$D$1011,B22) -> 250.91 | I22: 250.91
A23: 13 | B23: ='DATI-CONDOMINIO'!A23 -> C13 | C23: ='DATI-CONDOMINIO'!B23 -> Condomino-13 | D23: =SCI!D23-SUMIFS(REGISTRO!$N$11:$N$1011,REGISTRO!$D$11:$D$1011,B23) -> 0 | E23: =SCI!E23-SUMIFS(REGISTRO!$L$11:$L$1011,REGISTRO!$D$11:$D$1011,B23) -> 0 | F23: =SCI!F23-SUMIFS(REGISTRO!$J$11:$J$1011,REGISTRO!$D$11:$D$1011,B23) -> 0 | G23: =SCI!G23-SUMIFS(REGISTRO!$H$11:$H$1011,REGISTRO!$D$11:$D$1011,B23) -> 0 | H23: =SCI!H23-SUMIFS(REGISTRO!$F$11:$F$1011,REGISTRO!$D$11:$D$1011,B23) -> 91.01 | I23: 91.01
A24: 14 | B24: ='DATI-CONDOMINIO'!A24 -> C14 | C24: ='DATI-CONDOMINIO'!B24 -> Condomino-14 | D24: =SCI!D24-SUMIFS(REGISTRO!$N$11:$N$1011,REGISTRO!$D$11:$D$1011,B24) -> 0 | E24: =SCI!E24-SUMIFS(REGISTRO!$L$11:$L$1011,REGISTRO!$D$11:$D$1011,B24) -> 0 | F24: =SCI!F24-SUMIFS(REGISTRO!$J$11:$J$1011,REGISTRO!$D$11:$D$1011,B24) -> 0 | G24: =SCI!G24-SUMIFS(REGISTRO!$H$11:$H$1011,REGISTRO!$D$11:$D$1011,B24) -> 0 | H24: =SCI!H24-SUMIFS(REGISTRO!$F$11:$F$1011,REGISTRO!$D$11:$D$1011,B24) -> 291.24 | I24: 291.24
A25: 15 | B25: ='DATI-CONDOMINIO'!A25 -> C15 | C25: ='DATI-CONDOMINIO'!B25 -> Condomino-15 | D25: =SCI!D25-SUMIFS(REGISTRO!$N$11:$N$1011,REGISTRO!$D$11:$D$1011,B25) -> 0 | E25: =SCI!E25-SUMIFS(REGISTRO!$L$11:$L$1011,REGISTRO!$D$11:$D$1011,B25) -> 0 | F25: =SCI!F25-SUMIFS(REGISTRO!$J$11:$J$1011,REGISTRO!$D$11:$D$1011,B25) -> 0 | G25: =SCI!G25-SUMIFS(REGISTRO!$H$11:$H$1011,REGISTRO!$D$11:$D$1011,B25) -> 640.5 | H25: =SCI!H25-SUMIFS(REGISTRO!$F$11:$F$1011,REGISTRO!$D$11:$D$1011,B25) -> 672.4 | I25: 1312.9
A26: 16 | B26: ='DATI-CONDOMINIO'!A26 -> C16 | C26: ='DATI-CONDOMINIO'!B26 -> Condomino-16 | D26: =SCI!D26-SUMIFS(REGISTRO!$N$11:$N$1011,REGISTRO!$D$11:$D$1011,B26) -> 0 | E26: =SCI!E26-SUMIFS(REGISTRO!$L$11:$L$1011,REGISTRO!$D$11:$D$1011,B26) -> 0 | F26: =SCI!F26-SUMIFS(REGISTRO!$J$11:$J$1011,REGISTRO!$D$11:$D$1011,B26) -> 0 | G26: =SCI!G26-SUMIFS(REGISTRO!$H$11:$H$1011,REGISTRO!$D$11:$D$1011,B26) -> 0 | H26: =SCI!H26-SUMIFS(REGISTRO!$F$11:$F$1011,REGISTRO!$D$11:$D$1011,B26) -> 583.29 | I26: 583.29
A27: 17 | B27: ='DATI-CONDOMINIO'!A27 -> C17 | C27: ='DATI-CONDOMINIO'!B27 -> Condomino-17 | D27: =SCI!D27-SUMIFS(REGISTRO!$N$11:$N$1011,REGISTRO!$D$11:$D$1011,B27) -> 0 | E27: =SCI!E27-SUMIFS(REGISTRO!$L$11:$L$1011,REGISTRO!$D$11:$D$1011,B27) -> 0 | F27: =SCI!F27-SUMIFS(REGISTRO!$J$11:$J$1011,REGISTRO!$D$11:$D$1011,B27) -> 0 | G27: =SCI!G27-SUMIFS(REGISTRO!$H$11:$H$1011,REGISTRO!$D$11:$D$1011,B27) -> 312.1 | H27: =SCI!H27-SUMIFS(REGISTRO!$F$11:$F$1011,REGISTRO!$D$11:$D$1011,B27) -> 499.39 | I27: 811.49
A28: 18 | B28: ='DATI-CONDOMINIO'!A28 -> C18 | C28: ='DATI-CONDOMINIO'!B28 -> Condomino-18 | D28: =SCI!D28-SUMIFS(REGISTRO!$N$11:$N$1011,REGISTRO!$D$11:$D$1011,B28) -> 0 | E28: =SCI!E28-SUMIFS(REGISTRO!$L$11:$L$1011,REGISTRO!$D$11:$D$1011,B28) -> 0 | F28: =SCI!F28-SUMIFS(REGISTRO!$J$11:$J$1011,REGISTRO!$D$11:$D$1011,B28) -> 0 | G28: =SCI!G28-SUMIFS(REGISTRO!$H$11:$H$1011,REGISTRO!$D$11:$D$1011,B28) -> 0 | H28: =SCI!H28-SUMIFS(REGISTRO!$F$11:$F$1011,REGISTRO!$D$11:$D$1011,B28) -> 583.06 | I28: 583.06
A29: 19 | B29: ='DATI-CONDOMINIO'!A29 -> C19 | C29: ='DATI-CONDOMINIO'!B29 -> Condomino-19 | D29: =SCI!D29-SUMIFS(REGISTRO!$N$11:$N$1011,REGISTRO!$D$11:$D$1011,B29) -> 0 | E29: =SCI!E29-SUMIFS(REGISTRO!$L$11:$L$1011,REGISTRO!$D$11:$D$1011,B29) -> 0 | F29: =SCI!F29-SUMIFS(REGISTRO!$J$11:$J$1011,REGISTRO!$D$11:$D$1011,B29) -> 0 | G29: =SCI!G29-SUMIFS(REGISTRO!$H$11:$H$1011,REGISTRO!$D$11:$D$1011,B29) -> 0 | H29: =SCI!H29-SUMIFS(REGISTRO!$F$11:$F$1011,REGISTRO!$D$11:$D$1011,B29) -> 477.12 | I29: 477.12
A30: 20 | B30: ='DATI-CONDOMINIO'!A30 -> C20 | C30: ='DATI-CONDOMINIO'!B30 -> Condomino-20 | D30: =SCI!D30-SUMIFS(REGISTRO!$N$11:$N$1011,REGISTRO!$D$11:$D$1011,B30) -> 0 | E30: =SCI!E30-SUMIFS(REGISTRO!$L$11:$L$1011,REGISTRO!$D$11:$D$1011,B30) -> 0 | F30: =SCI!F30-SUMIFS(REGISTRO!$J$11:$J$1011,REGISTRO!$D$11:$D$1011,B30) -> 0 | G30: =SCI!G30-SUMIFS(REGISTRO!$H$11:$H$1011,REGISTRO!$D$11:$D$1011,B30) -> 179.04 | H30: =SCI!H30-SUMIFS(REGISTRO!$F$11:$F$1011,REGISTRO!$D$11:$D$1011,B30) -> 510.17 | I30: 689.21
A31: 21 | B31: ='DATI-CONDOMINIO'!A31 -> C21 | C31: ='DATI-CONDOMINIO'!B31 -> Condomino-21 | D31: =SCI!D31-SUMIFS(REGISTRO!$N$11:$N$1011,REGISTRO!$D$11:$D$1011,B31) -> 0 | E31: =SCI!E31-SUMIFS(REGISTRO!$L$11:$L$1011,REGISTRO!$D$11:$D$1011,B31) -> 0 | F31: =SCI!F31-SUMIFS(REGISTRO!$J$11:$J$1011,REGISTRO!$D$11:$D$1011,B31) -> 0 | G31: =SCI!G31-SUMIFS(REGISTRO!$H$11:$H$1011,REGISTRO!$D$11:$D$1011,B31) -> 0 | H31: =SCI!H31-SUMIFS(REGISTRO!$F$11:$F$1011,REGISTRO!$D$11:$D$1011,B31) -> 349.98 | I31: 349.98
A32: 22 | B32: ='DATI-CONDOMINIO'!A32 -> C22 | C32: ='DATI-CONDOMINIO'!B32 -> Condomino-22 | D32: =SCI!D32-SUMIFS(REGISTRO!$N$11:$N$1011,REGISTRO!$D$11:$D$1011,B32) -> 0 | E32: =SCI!E32-SUMIFS(REGISTRO!$L$11:$L$1011,REGISTRO!$D$11:$D$1011,B32) -> 0 | F32: =SCI!F32-SUMIFS(REGISTRO!$J$11:$J$1011,REGISTRO!$D$11:$D$1011,B32) -> 0 | G32: =SCI!G32-SUMIFS(REGISTRO!$H$11:$H$1011,REGISTRO!$D$11:$D$1011,B32) -> 305.95 | H32: =SCI!H32-SUMIFS(REGISTRO!$F$11:$F$1011,REGISTRO!$D$11:$D$1011,B32) -> 388.46 | I32: 694.41
A33: 23 | B33: ='DATI-CONDOMINIO'!A33 -> C23 | C33: ='DATI-CONDOMINIO'!B33 -> Condomino-23 | D33: =SCI!D33-SUMIFS(REGISTRO!$N$11:$N$1011,REGISTRO!$D$11:$D$1011,B33) -> 0 | E33: =SCI!E33-SUMIFS(REGISTRO!$L$11:$L$1011,REGISTRO!$D$11:$D$1011,B33) -> 0 | F33: =SCI!F33-SUMIFS(REGISTRO!$J$11:$J$1011,REGISTRO!$D$11:$D$1011,B33) -> 0 | G33: =SCI!G33-SUMIFS(REGISTRO!$H$11:$H$1011,REGISTRO!$D$11:$D$1011,B33) -> 0 | H33: =SCI!H33-SUMIFS(REGISTRO!$F$11:$F$1011,REGISTRO!$D$11:$D$1011,B33) -> 278.75 | I33: 278.75
A34: 24 | B34: ='DATI-CONDOMINIO'!A34 -> C24 | C34: ='DATI-CONDOMINIO'!B34 -> Condomino-24 | D34: =SCI!D34-SUMIFS(REGISTRO!$N$11:$N$1011,REGISTRO!$D$11:$D$1011,B34) -> 0 | E34: =SCI!E34-SUMIFS(REGISTRO!$L$11:$L$1011,REGISTRO!$D$11:$D$1011,B34) -> 0 | F34: =SCI!F34-SUMIFS(REGISTRO!$J$11:$J$1011,REGISTRO!$D$11:$D$1011,B34) -> 0 | G34: =SCI!G34-SUMIFS(REGISTRO!$H$11:$H$1011,REGISTRO!$D$11:$D$1011,B34) -> 0 | H34: =SCI!H34-SUMIFS(REGISTRO!$F$11:$F$1011,REGISTRO!$D$11:$D$1011,B34) -> 298.72 | I34: 298.72
A35: 25 | B35: ='DATI-CONDOMINIO'!A35 -> C25 | C35: ='DATI-CONDOMINIO'!B35 -> 0 | D35: =SCI!D35-SUMIFS(REGISTRO!$N$11:$N$1011,REGISTRO!$D$11:$D$1011,B35) -> 0 | E35: =SCI!E35-SUMIFS(REGISTRO!$L$11:$L$1011,REGISTRO!$D$11:$D$1011,B35) -> 0 | F35: =SCI!F35-SUMIFS(REGISTRO!$J$11:$J$1011,REGISTRO!$D$11:$D$1011,B35) -> 0 | G35: =SCI!G35-SUMIFS(REGISTRO!$H$11:$H$1011,REGISTRO!$D$11:$D$1011,B35) -> 0 | H35: =SCI!H35-SUMIFS(REGISTRO!$F$11:$F$1011,REGISTRO!$D$11:$D$1011,B35) -> 0 | I35: 0
A36: 26 | B36: ='DATI-CONDOMINIO'!A36 -> C26 | C36: ='DATI-CONDOMINIO'!B36 ->  | D36: =SCI!D36-SUMIFS(REGISTRO!$N$11:$N$1011,REGISTRO!$D$11:$D$1011,B36) -> 0 | E36: =SCI!E36-SUMIFS(REGISTRO!$L$11:$L$1011,REGISTRO!$D$11:$D$1011,B36) -> 0 | F36: =SCI!F36-SUMIFS(REGISTRO!$J$11:$J$1011,REGISTRO!$D$11:$D$1011,B36) -> 0 | G36: =SCI!G36-SUMIFS(REGISTRO!$H$11:$H$1011,REGISTRO!$D$11:$D$1011,B36) -> 0 | H36: =SCI!H36-SUMIFS(REGISTRO!$F$11:$F$1011,REGISTRO!$D$11:$D$1011,B36) -> 0 | I36: 0
A37: 27 | B37: ='DATI-CONDOMINIO'!A37 -> C27 | C37: ='DATI-CONDOMINIO'!B37 ->  | D37: =SCI!D37-SUMIFS(REGISTRO!$N$11:$N$1011,REGISTRO!$D$11:$D$1011,B37) -> 0 | E37: =SCI!E37-SUMIFS(REGISTRO!$L$11:$L$1011,REGISTRO!$D$11:$D$1011,B37) -> 0 | F37: =SCI!F37-SUMIFS(REGISTRO!$J$11:$J$1011,REGISTRO!$D$11:$D$1011,B37) -> 0 | G37: =SCI!G37-SUMIFS(REGISTRO!$H$11:$H$1011,REGISTRO!$D$11:$D$1011,B37) -> 0 | H37: =SCI!H37-SUMIFS(REGISTRO!$F$11:$F$1011,REGISTRO!$D$11:$D$1011,B37) -> 0 | I37: 0
A38: 28 | B38: ='DATI-CONDOMINIO'!A38 -> C28 | C38: ='DATI-CONDOMINIO'!B38 ->  | D38: =SCI!D38-SUMIFS(REGISTRO!$N$11:$N$1011,REGISTRO!$D$11:$D$1011,B38) -> 0 | E38: =SCI!E38-SUMIFS(REGISTRO!$L$11:$L$1011,REGISTRO!$D$11:$D$1011,B38) -> 0 | F38: =SCI!F38-SUMIFS(REGISTRO!$J$11:$J$1011,REGISTRO!$D$11:$D$1011,B38) -> 0 | G38: =SCI!G38-SUMIFS(REGISTRO!$H$11:$H$1011,REGISTRO!$D$11:$D$1011,B38) -> 0 | H38: =SCI!H38-SUMIFS(REGISTRO!$F$11:$F$1011,REGISTRO!$D$11:$D$1011,B38) -> 0 | I38: 0
A39: 29 | B39: ='DATI-CONDOMINIO'!A39 -> C29 | C39: ='DATI-CONDOMINIO'!B39 ->  | D39: =SCI!D39-SUMIFS(REGISTRO!$N$11:$N$1011,REGISTRO!$D$11:$D$1011,B39) -> 0 | E39: =SCI!E39-SUMIFS(REGISTRO!$L$11:$L$1011,REGISTRO!$D$11:$D$1011,B39) -> 0 | F39: =SCI!F39-SUMIFS(REGISTRO!$J$11:$J$1011,REGISTRO!$D$11:$D$1011,B39) -> 0 | G39: =SCI!G39-SUMIFS(REGISTRO!$H$11:$H$1011,REGISTRO!$D$11:$D$1011,B39) -> 0 | H39: =SCI!H39-SUMIFS(REGISTRO!$F$11:$F$1011,REGISTRO!$D$11:$D$1011,B39) -> 0 | I39: 0
A40: 30 | B40: ='DATI-CONDOMINIO'!A40 -> C30 | C40: ='DATI-CONDOMINIO'!B40 ->  | D40: =SCI!D40-SUMIFS(REGISTRO!$N$11:$N$1011,REGISTRO!$D$11:$D$1011,B40) -> 0 | E40: =SCI!E40-SUMIFS(REGISTRO!$L$11:$L$1011,REGISTRO!$D$11:$D$1011,B40) -> 0 | F40: =SCI!F40-SUMIFS(REGISTRO!$J$11:$J$1011,REGISTRO!$D$11:$D$1011,B40) -> 0 | G40: =SCI!G40-SUMIFS(REGISTRO!$H$11:$H$1011,REGISTRO!$D$11:$D$1011,B40) -> 0 | H40: =SCI!H40-SUMIFS(REGISTRO!$F$11:$F$1011,REGISTRO!$D$11:$D$1011,B40) -> 0 | I40: 0
A41: 31 | B41: ='DATI-CONDOMINIO'!A41 -> C31 | C41: ='DATI-CONDOMINIO'!B41 ->  | D41: =SCI!D41-SUMIFS(REGISTRO!$N$11:$N$1011,REGISTRO!$D$11:$D$1011,B41) -> 0 | E41: =SCI!E41-SUMIFS(REGISTRO!$L$11:$L$1011,REGISTRO!$D$11:$D$1011,B41) -> 0 | F41: =SCI!F41-SUMIFS(REGISTRO!$J$11:$J$1011,REGISTRO!$D$11:$D$1011,B41) -> 0 | G41: =SCI!G41-SUMIFS(REGISTRO!$H$11:$H$1011,REGISTRO!$D$11:$D$1011,B41) -> 0 | H41: =SCI!H41-SUMIFS(REGISTRO!$F$11:$F$1011,REGISTRO!$D$11:$D$1011,B41) -> 0 | I41: 0
A42: 32 | B42: ='DATI-CONDOMINIO'!A42 -> C32 | C42: ='DATI-CONDOMINIO'!B42 ->  | D42: =SCI!D42-SUMIFS(REGISTRO!$N$11:$N$1011,REGISTRO!$D$11:$D$1011,B42) -> 0 | E42: =SCI!E42-SUMIFS(REGISTRO!$L$11:$L$1011,REGISTRO!$D$11:$D$1011,B42) -> 0 | F42: =SCI!F42-SUMIFS(REGISTRO!$J$11:$J$1011,REGISTRO!$D$11:$D$1011,B42) -> 0 | G42: =SCI!G42-SUMIFS(REGISTRO!$H$11:$H$1011,REGISTRO!$D$11:$D$1011,B42) -> 0 | H42: =SCI!H42-SUMIFS(REGISTRO!$F$11:$F$1011,REGISTRO!$D$11:$D$1011,B42) -> 0 | I42: 0
A43: 33 | B43: ='DATI-CONDOMINIO'!A43 -> C33 | C43: ='DATI-CONDOMINIO'!B43 ->  | D43: =SCI!D43-SUMIFS(REGISTRO!$N$11:$N$1011,REGISTRO!$D$11:$D$1011,B43) -> 0 | E43: =SCI!E43-SUMIFS(REGISTRO!$L$11:$L$1011,REGISTRO!$D$11:$D$1011,B43) -> 0 | F43: =SCI!F43-SUMIFS(REGISTRO!$J$11:$J$1011,REGISTRO!$D$11:$D$1011,B43) -> 0 | G43: =SCI!G43-SUMIFS(REGISTRO!$H$11:$H$1011,REGISTRO!$D$11:$D$1011,B43) -> 0 | H43: =SCI!H43-SUMIFS(REGISTRO!$F$11:$F$1011,REGISTRO!$D$11:$D$1011,B43) -> 0 | I43: 0
A44: 34 | B44: ='DATI-CONDOMINIO'!A44 -> C34 | C44: ='DATI-CONDOMINIO'!B44 ->  | D44: =SCI!D44-SUMIFS(REGISTRO!$N$11:$N$1011,REGISTRO!$D$11:$D$1011,B44) -> 0 | E44: =SCI!E44-SUMIFS(REGISTRO!$L$11:$L$1011,REGISTRO!$D$11:$D$1011,B44) -> 0 | F44: =SCI!F44-SUMIFS(REGISTRO!$J$11:$J$1011,REGISTRO!$D$11:$D$1011,B44) -> 0 | G44: =SCI!G44-SUMIFS(REGISTRO!$H$11:$H$1011,REGISTRO!$D$11:$D$1011,B44) -> 0 | H44: =SCI!H44-SUMIFS(REGISTRO!$F$11:$F$1011,REGISTRO!$D$11:$D$1011,B44) -> 0 | I44: 0
A45: 35 | B45: ='DATI-CONDOMINIO'!A45 -> C35 | C45: ='DATI-CONDOMINIO'!B45 ->  | D45: =SCI!D45-SUMIFS(REGISTRO!$N$11:$N$1011,REGISTRO!$D$11:$D$1011,B45) -> 0 | E45: =SCI!E45-SUMIFS(REGISTRO!$L$11:$L$1011,REGISTRO!$D$11:$D$1011,B45) -> 0 | F45: =SCI!F45-SUMIFS(REGISTRO!$J$11:$J$1011,REGISTRO!$D$11:$D$1011,B45) -> 0 | G45: =SCI!G45-SUMIFS(REGISTRO!$H$11:$H$1011,REGISTRO!$D$11:$D$1011,B45) -> 0 | H45: =SCI!H45-SUMIFS(REGISTRO!$F$11:$F$1011,REGISTRO!$D$11:$D$1011,B45) -> 0 | I45: 0
A46: 36 | B46: ='DATI-CONDOMINIO'!A46 -> C36 | C46: ='DATI-CONDOMINIO'!B46 ->  | D46: =SCI!D46-SUMIFS(REGISTRO!$N$11:$N$1011,REGISTRO!$D$11:$D$1011,B46) -> 0 | E46: =SCI!E46-SUMIFS(REGISTRO!$L$11:$L$1011,REGISTRO!$D$11:$D$1011,B46) -> 0 | F46: =SCI!F46-SUMIFS(REGISTRO!$J$11:$J$1011,REGISTRO!$D$11:$D$1011,B46) -> 0 | G46: =SCI!G46-SUMIFS(REGISTRO!$H$11:$H$1011,REGISTRO!$D$11:$D$1011,B46) -> 0 | H46: =SCI!H46-SUMIFS(REGISTRO!$F$11:$F$1011,REGISTRO!$D$11:$D$1011,B46) -> 0 | I46: 0
A47: 37 | B47: ='DATI-CONDOMINIO'!A47 -> C37 | C47: ='DATI-CONDOMINIO'!B47 ->  | D47: =SCI!D47-SUMIFS(REGISTRO!$N$11:$N$1011,REGISTRO!$D$11:$D$1011,B47) -> 0 | E47: =SCI!E47-SUMIFS(REGISTRO!$L$11:$L$1011,REGISTRO!$D$11:$D$1011,B47) -> 0 | F47: =SCI!F47-SUMIFS(REGISTRO!$J$11:$J$1011,REGISTRO!$D$11:$D$1011,B47) -> 0 | G47: =SCI!G47-SUMIFS(REGISTRO!$H$11:$H$1011,REGISTRO!$D$11:$D$1011,B47) -> 0 | H47: =SCI!H47-SUMIFS(REGISTRO!$F$11:$F$1011,REGISTRO!$D$11:$D$1011,B47) -> 0 | I47: 0
A48: 38 | B48: ='DATI-CONDOMINIO'!A48 -> C38 | C48: ='DATI-CONDOMINIO'!B48 ->  | D48: =SCI!D48-SUMIFS(REGISTRO!$N$11:$N$1011,REGISTRO!$D$11:$D$1011,B48) -> 0 | E48: =SCI!E48-SUMIFS(REGISTRO!$L$11:$L$1011,REGISTRO!$D$11:$D$1011,B48) -> 0 | F48: =SCI!F48-SUMIFS(REGISTRO!$J$11:$J$1011,REGISTRO!$D$11:$D$1011,B48) -> 0 | G48: =SCI!G48-SUMIFS(REGISTRO!$H$11:$H$1011,REGISTRO!$D$11:$D$1011,B48) -> 0 | H48: =SCI!H48-SUMIFS(REGISTRO!$F$11:$F$1011,REGISTRO!$D$11:$D$1011,B48) -> 0 | I48: 0
A49: 39 | B49: ='DATI-CONDOMINIO'!A49 -> C39 | C49: ='DATI-CONDOMINIO'!B49 ->  | D49: =SCI!D49-SUMIFS(REGISTRO!$N$11:$N$1011,REGISTRO!$D$11:$D$1011,B49) -> 0 | E49: =SCI!E49-SUMIFS(REGISTRO!$L$11:$L$1011,REGISTRO!$D$11:$D$1011,B49) -> 0 | F49: =SCI!F49-SUMIFS(REGISTRO!$J$11:$J$1011,REGISTRO!$D$11:$D$1011,B49) -> 0 | G49: =SCI!G49-SUMIFS(REGISTRO!$H$11:$H$1011,REGISTRO!$D$11:$D$1011,B49) -> 0 | H49: =SCI!H49-SUMIFS(REGISTRO!$F$11:$F$1011,REGISTRO!$D$11:$D$1011,B49) -> 0 | I49: 0
A50: 40 | B50: ='DATI-CONDOMINIO'!A50 -> C40 | C50: ='DATI-CONDOMINIO'!B50 ->  | D50: =SCI!D50-SUMIFS(REGISTRO!$N$11:$N$1011,REGISTRO!$D$11:$D$1011,B50) -> 0 | E50: =SCI!E50-SUMIFS(REGISTRO!$L$11:$L$1011,REGISTRO!$D$11:$D$1011,B50) -> 0 | F50: =SCI!F50-SUMIFS(REGISTRO!$J$11:$J$1011,REGISTRO!$D$11:$D$1011,B50) -> 0 | G50: =SCI!G50-SUMIFS(REGISTRO!$H$11:$H$1011,REGISTRO!$D$11:$D$1011,B50) -> 0 | H50: =SCI!H50-SUMIFS(REGISTRO!$F$11:$F$1011,REGISTRO!$D$11:$D$1011,B50) -> 0 | I50: 0
A51: 41 | B51: ='DATI-CONDOMINIO'!A51 -> C41 | C51: ='DATI-CONDOMINIO'!B51 ->  | D51: =SCI!D51-SUMIFS(REGISTRO!$N$11:$N$1011,REGISTRO!$D$11:$D$1011,B51) -> 0 | E51: =SCI!E51-SUMIFS(REGISTRO!$L$11:$L$1011,REGISTRO!$D$11:$D$1011,B51) -> 0 | F51: =SCI!F51-SUMIFS(REGISTRO!$J$11:$J$1011,REGISTRO!$D$11:$D$1011,B51) -> 0 | G51: =SCI!G51-SUMIFS(REGISTRO!$H$11:$H$1011,REGISTRO!$D$11:$D$1011,B51) -> 0 | H51: =SCI!H51-SUMIFS(REGISTRO!$F$11:$F$1011,REGISTRO!$D$11:$D$1011,B51) -> 0 | I51: 0
A52: 42 | B52: ='DATI-CONDOMINIO'!A52 -> C42 | C52: ='DATI-CONDOMINIO'!B52 ->  | D52: =SCI!D52-SUMIFS(REGISTRO!$N$11:$N$1011,REGISTRO!$D$11:$D$1011,B52) -> 0 | E52: =SCI!E52-SUMIFS(REGISTRO!$L$11:$L$1011,REGISTRO!$D$11:$D$1011,B52) -> 0 | F52: =SCI!F52-SUMIFS(REGISTRO!$J$11:$J$1011,REGISTRO!$D$11:$D$1011,B52) -> 0 | G52: =SCI!G52-SUMIFS(REGISTRO!$H$11:$H$1011,REGISTRO!$D$11:$D$1011,B52) -> 0 | H52: =SCI!H52-SUMIFS(REGISTRO!$F$11:$F$1011,REGISTRO!$D$11:$D$1011,B52) -> 0 | I52: 0
A53: 43 | B53: ='DATI-CONDOMINIO'!A53 -> C43 | C53: ='DATI-CONDOMINIO'!B53 ->  | D53: =SCI!D53-SUMIFS(REGISTRO!$N$11:$N$1011,REGISTRO!$D$11:$D$1011,B53) -> 0 | E53: =SCI!E53-SUMIFS(REGISTRO!$L$11:$L$1011,REGISTRO!$D$11:$D$1011,B53) -> 0 | F53: =SCI!F53-SUMIFS(REGISTRO!$J$11:$J$1011,REGISTRO!$D$11:$D$1011,B53) -> 0 | G53: =SCI!G53-SUMIFS(REGISTRO!$H$11:$H$1011,REGISTRO!$D$11:$D$1011,B53) -> 0 | H53: =SCI!H53-SUMIFS(REGISTRO!$F$11:$F$1011,REGISTRO!$D$11:$D$1011,B53) -> 0 | I53: 0
A54: 44 | B54: ='DATI-CONDOMINIO'!A54 -> C44 | C54: ='DATI-CONDOMINIO'!B54 ->  | D54: =SCI!D54-SUMIFS(REGISTRO!$N$11:$N$1011,REGISTRO!$D$11:$D$1011,B54) -> 0 | E54: =SCI!E54-SUMIFS(REGISTRO!$L$11:$L$1011,REGISTRO!$D$11:$D$1011,B54) -> 0 | F54: =SCI!F54-SUMIFS(REGISTRO!$J$11:$J$1011,REGISTRO!$D$11:$D$1011,B54) -> 0 | G54: =SCI!G54-SUMIFS(REGISTRO!$H$11:$H$1011,REGISTRO!$D$11:$D$1011,B54) -> 0 | H54: =SCI!H54-SUMIFS(REGISTRO!$F$11:$F$1011,REGISTRO!$D$11:$D$1011,B54) -> 0 | I54: 0
A55: 45 | B55: ='DATI-CONDOMINIO'!A55 -> C45 | C55: ='DATI-CONDOMINIO'!B55 ->  | D55: =SCI!D55-SUMIFS(REGISTRO!$N$11:$N$1011,REGISTRO!$D$11:$D$1011,B55) -> 0 | E55: =SCI!E55-SUMIFS(REGISTRO!$L$11:$L$1011,REGISTRO!$D$11:$D$1011,B55) -> 0 | F55: =SCI!F55-SUMIFS(REGISTRO!$J$11:$J$1011,REGISTRO!$D$11:$D$1011,B55) -> 0 | G55: =SCI!G55-SUMIFS(REGISTRO!$H$11:$H$1011,REGISTRO!$D$11:$D$1011,B55) -> 0 | H55: =SCI!H55-SUMIFS(REGISTRO!$F$11:$F$1011,REGISTRO!$D$11:$D$1011,B55) -> 0 | I55: 0
A56: 46 | B56: ='DATI-CONDOMINIO'!A56 -> C46 | C56: ='DATI-CONDOMINIO'!B56 ->  | D56: =SCI!D56-SUMIFS(REGISTRO!$N$11:$N$1011,REGISTRO!$D$11:$D$1011,B56) -> 0 | E56: =SCI!E56-SUMIFS(REGISTRO!$L$11:$L$1011,REGISTRO!$D$11:$D$1011,B56) -> 0 | F56: =SCI!F56-SUMIFS(REGISTRO!$J$11:$J$1011,REGISTRO!$D$11:$D$1011,B56) -> 0 | G56: =SCI!G56-SUMIFS(REGISTRO!$H$11:$H$1011,REGISTRO!$D$11:$D$1011,B56) -> 0 | H56: =SCI!H56-SUMIFS(REGISTRO!$F$11:$F$1011,REGISTRO!$D$11:$D$1011,B56) -> 0 | I56: 0
A57: 47 | B57: ='DATI-CONDOMINIO'!A57 -> C47 | C57: ='DATI-CONDOMINIO'!B57 ->  | D57: =SCI!D57-SUMIFS(REGISTRO!$N$11:$N$1011,REGISTRO!$D$11:$D$1011,B57) -> 0 | E57: =SCI!E57-SUMIFS(REGISTRO!$L$11:$L$1011,REGISTRO!$D$11:$D$1011,B57) -> 0 | F57: =SCI!F57-SUMIFS(REGISTRO!$J$11:$J$1011,REGISTRO!$D$11:$D$1011,B57) -> 0 | G57: =SCI!G57-SUMIFS(REGISTRO!$H$11:$H$1011,REGISTRO!$D$11:$D$1011,B57) -> 0 | H57: =SCI!H57-SUMIFS(REGISTRO!$F$11:$F$1011,REGISTRO!$D$11:$D$1011,B57) -> 0 | I57: 0
A58: 48 | B58: ='DATI-CONDOMINIO'!A58 -> C48 | C58: ='DATI-CONDOMINIO'!B58 ->  | D58: =SCI!D58-SUMIFS(REGISTRO!$N$11:$N$1011,REGISTRO!$D$11:$D$1011,B58) -> 0 | E58: =SCI!E58-SUMIFS(REGISTRO!$L$11:$L$1011,REGISTRO!$D$11:$D$1011,B58) -> 0 | F58: =SCI!F58-SUMIFS(REGISTRO!$J$11:$J$1011,REGISTRO!$D$11:$D$1011,B58) -> 0 | G58: =SCI!G58-SUMIFS(REGISTRO!$H$11:$H$1011,REGISTRO!$D$11:$D$1011,B58) -> 0 | H58: =SCI!H58-SUMIFS(REGISTRO!$F$11:$F$1011,REGISTRO!$D$11:$D$1011,B58) -> 0 | I58: 0
A59: 49 | B59: ='DATI-CONDOMINIO'!A59 -> C49 | C59: ='DATI-CONDOMINIO'!B59 ->  | D59: =SCI!D59-SUMIFS(REGISTRO!$N$11:$N$1011,REGISTRO!$D$11:$D$1011,B59) -> 0 | E59: =SCI!E59-SUMIFS(REGISTRO!$L$11:$L$1011,REGISTRO!$D$11:$D$1011,B59) -> 0 | F59: =SCI!F59-SUMIFS(REGISTRO!$J$11:$J$1011,REGISTRO!$D$11:$D$1011,B59) -> 0 | G59: =SCI!G59-SUMIFS(REGISTRO!$H$11:$H$1011,REGISTRO!$D$11:$D$1011,B59) -> 0 | H59: =SCI!H59-SUMIFS(REGISTRO!$F$11:$F$1011,REGISTRO!$D$11:$D$1011,B59) -> 0 | I59: 0
A60: 50 | B60: ='DATI-CONDOMINIO'!A60 -> C50 | C60: ='DATI-CONDOMINIO'!B60 ->  | D60: =SCI!D60-SUMIFS(REGISTRO!$N$11:$N$1011,REGISTRO!$D$11:$D$1011,B60) -> 0 | E60: =SCI!E60-SUMIFS(REGISTRO!$L$11:$L$1011,REGISTRO!$D$11:$D$1011,B60) -> 0 | F60: =SCI!F60-SUMIFS(REGISTRO!$J$11:$J$1011,REGISTRO!$D$11:$D$1011,B60) -> 0 | G60: =SCI!G60-SUMIFS(REGISTRO!$H$11:$H$1011,REGISTRO!$D$11:$D$1011,B60) -> 0 | H60: =SCI!H60-SUMIFS(REGISTRO!$F$11:$F$1011,REGISTRO!$D$11:$D$1011,B60) -> 0 | I60: 0
A61: 51 | B61: ='DATI-CONDOMINIO'!A61 -> C51 | C61: ='DATI-CONDOMINIO'!B61 ->  | D61: =SCI!D61-SUMIFS(REGISTRO!$N$11:$N$1011,REGISTRO!$D$11:$D$1011,B61) -> 0 | E61: =SCI!E61-SUMIFS(REGISTRO!$L$11:$L$1011,REGISTRO!$D$11:$D$1011,B61) -> 0 | F61: =SCI!F61-SUMIFS(REGISTRO!$J$11:$J$1011,REGISTRO!$D$11:$D$1011,B61) -> 0 | G61: =SCI!G61-SUMIFS(REGISTRO!$H$11:$H$1011,REGISTRO!$D$11:$D$1011,B61) -> 0 | H61: =SCI!H61-SUMIFS(REGISTRO!$F$11:$F$1011,REGISTRO!$D$11:$D$1011,B61) -> 0 | I61: 0
A62: 52 | B62: ='DATI-CONDOMINIO'!A62 -> C52 | C62: ='DATI-CONDOMINIO'!B62 ->  | D62: =SCI!D62-SUMIFS(REGISTRO!$N$11:$N$1011,REGISTRO!$D$11:$D$1011,B62) -> 0 | E62: =SCI!E62-SUMIFS(REGISTRO!$L$11:$L$1011,REGISTRO!$D$11:$D$1011,B62) -> 0 | F62: =SCI!F62-SUMIFS(REGISTRO!$J$11:$J$1011,REGISTRO!$D$11:$D$1011,B62) -> 0 | G62: =SCI!G62-SUMIFS(REGISTRO!$H$11:$H$1011,REGISTRO!$D$11:$D$1011,B62) -> 0 | H62: =SCI!H62-SUMIFS(REGISTRO!$F$11:$F$1011,REGISTRO!$D$11:$D$1011,B62) -> 0 | I62: 0
A63: 53 | B63: ='DATI-CONDOMINIO'!A63 -> C53 | C63: ='DATI-CONDOMINIO'!B63 ->  | D63: =SCI!D63-SUMIFS(REGISTRO!$N$11:$N$1011,REGISTRO!$D$11:$D$1011,B63) -> 0 | E63: =SCI!E63-SUMIFS(REGISTRO!$L$11:$L$1011,REGISTRO!$D$11:$D$1011,B63) -> 0 | F63: =SCI!F63-SUMIFS(REGISTRO!$J$11:$J$1011,REGISTRO!$D$11:$D$1011,B63) -> 0 | G63: =SCI!G63-SUMIFS(REGISTRO!$H$11:$H$1011,REGISTRO!$D$11:$D$1011,B63) -> 0 | H63: =SCI!H63-SUMIFS(REGISTRO!$F$11:$F$1011,REGISTRO!$D$11:$D$1011,B63) -> 0 | I63: 0
A64: 54 | B64: ='DATI-CONDOMINIO'!A64 -> C54 | C64: ='DATI-CONDOMINIO'!B64 ->  | D64: =SCI!D64-SUMIFS(REGISTRO!$N$11:$N$1011,REGISTRO!$D$11:$D$1011,B64) -> 0 | E64: =SCI!E64-SUMIFS(REGISTRO!$L$11:$L$1011,REGISTRO!$D$11:$D$1011,B64) -> 0 | F64: =SCI!F64-SUMIFS(REGISTRO!$J$11:$J$1011,REGISTRO!$D$11:$D$1011,B64) -> 0 | G64: =SCI!G64-SUMIFS(REGISTRO!$H$11:$H$1011,REGISTRO!$D$11:$D$1011,B64) -> 0 | H64: =SCI!H64-SUMIFS(REGISTRO!$F$11:$F$1011,REGISTRO!$D$11:$D$1011,B64) -> 0 | I64: 0
A65: 55 | B65: ='DATI-CONDOMINIO'!A65 -> C55 | C65: ='DATI-CONDOMINIO'!B65 ->  | D65: =SCI!D65-SUMIFS(REGISTRO!$N$11:$N$1011,REGISTRO!$D$11:$D$1011,B65) -> 0 | E65: =SCI!E65-SUMIFS(REGISTRO!$L$11:$L$1011,REGISTRO!$D$11:$D$1011,B65) -> 0 | F65: =SCI!F65-SUMIFS(REGISTRO!$J$11:$J$1011,REGISTRO!$D$11:$D$1011,B65) -> 0 | G65: =SCI!G65-SUMIFS(REGISTRO!$H$11:$H$1011,REGISTRO!$D$11:$D$1011,B65) -> 0 | H65: =SCI!H65-SUMIFS(REGISTRO!$F$11:$F$1011,REGISTRO!$D$11:$D$1011,B65) -> 0 | I65: 0
A66: 56 | B66: ='DATI-CONDOMINIO'!A66 -> C56 | C66: ='DATI-CONDOMINIO'!B66 ->  | D66: =SCI!D66-SUMIFS(REGISTRO!$N$11:$N$1011,REGISTRO!$D$11:$D$1011,B66) -> 0 | E66: =SCI!E66-SUMIFS(REGISTRO!$L$11:$L$1011,REGISTRO!$D$11:$D$1011,B66) -> 0 | F66: =SCI!F66-SUMIFS(REGISTRO!$J$11:$J$1011,REGISTRO!$D$11:$D$1011,B66) -> 0 | G66: =SCI!G66-SUMIFS(REGISTRO!$H$11:$H$1011,REGISTRO!$D$11:$D$1011,B66) -> 0 | H66: =SCI!H66-SUMIFS(REGISTRO!$F$11:$F$1011,REGISTRO!$D$11:$D$1011,B66) -> 0 | I66: 0
A67: 57 | B67: ='DATI-CONDOMINIO'!A67 -> C57 | C67: ='DATI-CONDOMINIO'!B67 ->  | D67: =SCI!D67-SUMIFS(REGISTRO!$N$11:$N$1011,REGISTRO!$D$11:$D$1011,B67) -> 0 | E67: =SCI!E67-SUMIFS(REGISTRO!$L$11:$L$1011,REGISTRO!$D$11:$D$1011,B67) -> 0 | F67: =SCI!F67-SUMIFS(REGISTRO!$J$11:$J$1011,REGISTRO!$D$11:$D$1011,B67) -> 0 | G67: =SCI!G67-SUMIFS(REGISTRO!$H$11:$H$1011,REGISTRO!$D$11:$D$1011,B67) -> 0 | H67: =SCI!H67-SUMIFS(REGISTRO!$F$11:$F$1011,REGISTRO!$D$11:$D$1011,B67) -> 0 | I67: 0
A68: 58 | B68: ='DATI-CONDOMINIO'!A68 -> C58 | C68: ='DATI-CONDOMINIO'!B68 ->  | D68: =SCI!D68-SUMIFS(REGISTRO!$N$11:$N$1011,REGISTRO!$D$11:$D$1011,B68) -> 0 | E68: =SCI!E68-SUMIFS(REGISTRO!$L$11:$L$1011,REGISTRO!$D$11:$D$1011,B68) -> 0 | F68: =SCI!F68-SUMIFS(REGISTRO!$J$11:$J$1011,REGISTRO!$D$11:$D$1011,B68) -> 0 | G68: =SCI!G68-SUMIFS(REGISTRO!$H$11:$H$1011,REGISTRO!$D$11:$D$1011,B68) -> 0 | H68: =SCI!H68-SUMIFS(REGISTRO!$F$11:$F$1011,REGISTRO!$D$11:$D$1011,B68) -> 0 | I68: 0
A69: 59 | B69: ='DATI-CONDOMINIO'!A69 -> C59 | C69: ='DATI-CONDOMINIO'!B69 ->  | D69: =SCI!D69-SUMIFS(REGISTRO!$N$11:$N$1011,REGISTRO!$D$11:$D$1011,B69) -> 0 | E69: =SCI!E69-SUMIFS(REGISTRO!$L$11:$L$1011,REGISTRO!$D$11:$D$1011,B69) -> 0 | F69: =SCI!F69-SUMIFS(REGISTRO!$J$11:$J$1011,REGISTRO!$D$11:$D$1011,B69) -> 0 | G69: =SCI!G69-SUMIFS(REGISTRO!$H$11:$H$1011,REGISTRO!$D$11:$D$1011,B69) -> 0 | H69: =SCI!H69-SUMIFS(REGISTRO!$F$11:$F$1011,REGISTRO!$D$11:$D$1011,B69) -> 0 | I69: 0
A70: 60 | B70: ='DATI-CONDOMINIO'!A70 -> C60 | C70: ='DATI-CONDOMINIO'!B70 ->  | D70: =SCI!D70-SUMIFS(REGISTRO!$N$11:$N$1011,REGISTRO!$D$11:$D$1011,B70) -> 0 | E70: =SCI!E70-SUMIFS(REGISTRO!$L$11:$L$1011,REGISTRO!$D$11:$D$1011,B70) -> 0 | F70: =SCI!F70-SUMIFS(REGISTRO!$J$11:$J$1011,REGISTRO!$D$11:$D$1011,B70) -> 0 | G70: =SCI!G70-SUMIFS(REGISTRO!$H$11:$H$1011,REGISTRO!$D$11:$D$1011,B70) -> 0 | H70: =SCI!H70-SUMIFS(REGISTRO!$F$11:$F$1011,REGISTRO!$D$11:$D$1011,B70) -> 0 | I70: 0
A71: 61 | B71: ='DATI-CONDOMINIO'!A71 -> C61 | C71: ='DATI-CONDOMINIO'!B71 ->  | D71: =SCI!D71-SUMIFS(REGISTRO!$N$11:$N$1011,REGISTRO!$D$11:$D$1011,B71) -> 0 | E71: =SCI!E71-SUMIFS(REGISTRO!$L$11:$L$1011,REGISTRO!$D$11:$D$1011,B71) -> 0 | F71: =SCI!F71-SUMIFS(REGISTRO!$J$11:$J$1011,REGISTRO!$D$11:$D$1011,B71) -> 0 | G71: =SCI!G71-SUMIFS(REGISTRO!$H$11:$H$1011,REGISTRO!$D$11:$D$1011,B71) -> 0 | H71: =SCI!H71-SUMIFS(REGISTRO!$F$11:$F$1011,REGISTRO!$D$11:$D$1011,B71) -> 0 | I71: 0
A72: 62 | B72: ='DATI-CONDOMINIO'!A72 -> C62 | C72: ='DATI-CONDOMINIO'!B72 ->  | D72: =SCI!D72-SUMIFS(REGISTRO!$N$11:$N$1011,REGISTRO!$D$11:$D$1011,B72) -> 0 | E72: =SCI!E72-SUMIFS(REGISTRO!$L$11:$L$1011,REGISTRO!$D$11:$D$1011,B72) -> 0 | F72: =SCI!F72-SUMIFS(REGISTRO!$J$11:$J$1011,REGISTRO!$D$11:$D$1011,B72) -> 0 | G72: =SCI!G72-SUMIFS(REGISTRO!$H$11:$H$1011,REGISTRO!$D$11:$D$1011,B72) -> 0 | H72: =SCI!H72-SUMIFS(REGISTRO!$F$11:$F$1011,REGISTRO!$D$11:$D$1011,B72) -> 0 | I72: 0
A73: 63 | B73: ='DATI-CONDOMINIO'!A73 -> C63 | C73: ='DATI-CONDOMINIO'!B73 ->  | D73: =SCI!D73-SUMIFS(REGISTRO!$N$11:$N$1011,REGISTRO!$D$11:$D$1011,B73) -> 0 | E73: =SCI!E73-SUMIFS(REGISTRO!$L$11:$L$1011,REGISTRO!$D$11:$D$1011,B73) -> 0 | F73: =SCI!F73-SUMIFS(REGISTRO!$J$11:$J$1011,REGISTRO!$D$11:$D$1011,B73) -> 0 | G73: =SCI!G73-SUMIFS(REGISTRO!$H$11:$H$1011,REGISTRO!$D$11:$D$1011,B73) -> 0 | H73: =SCI!H73-SUMIFS(REGISTRO!$F$11:$F$1011,REGISTRO!$D$11:$D$1011,B73) -> 0 | I73: 0
A74: 64 | B74: ='DATI-CONDOMINIO'!A74 -> C64 | C74: ='DATI-CONDOMINIO'!B74 ->  | D74: =SCI!D74-SUMIFS(REGISTRO!$N$11:$N$1011,REGISTRO!$D$11:$D$1011,B74) -> 0 | E74: =SCI!E74-SUMIFS(REGISTRO!$L$11:$L$1011,REGISTRO!$D$11:$D$1011,B74) -> 0 | F74: =SCI!F74-SUMIFS(REGISTRO!$J$11:$J$1011,REGISTRO!$D$11:$D$1011,B74) -> 0 | G74: =SCI!G74-SUMIFS(REGISTRO!$H$11:$H$1011,REGISTRO!$D$11:$D$1011,B74) -> 0 | H74: =SCI!H74-SUMIFS(REGISTRO!$F$11:$F$1011,REGISTRO!$D$11:$D$1011,B74) -> 0 | I74: 0
A75: 65 | B75: ='DATI-CONDOMINIO'!A75 -> C65 | C75: ='DATI-CONDOMINIO'!B75 ->  | D75: =SCI!D75-SUMIFS(REGISTRO!$N$11:$N$1011,REGISTRO!$D$11:$D$1011,B75) -> 0 | E75: =SCI!E75-SUMIFS(REGISTRO!$L$11:$L$1011,REGISTRO!$D$11:$D$1011,B75) -> 0 | F75: =SCI!F75-SUMIFS(REGISTRO!$J$11:$J$1011,REGISTRO!$D$11:$D$1011,B75) -> 0 | G75: =SCI!G75-SUMIFS(REGISTRO!$H$11:$H$1011,REGISTRO!$D$11:$D$1011,B75) -> 0 | H75: =SCI!H75-SUMIFS(REGISTRO!$F$11:$F$1011,REGISTRO!$D$11:$D$1011,B75) -> 0 | I75: 0
A76: 66 | B76: ='DATI-CONDOMINIO'!A76 -> C66 | C76: ='DATI-CONDOMINIO'!B76 ->  | D76: =SCI!D76-SUMIFS(REGISTRO!$N$11:$N$1011,REGISTRO!$D$11:$D$1011,B76) -> 0 | E76: =SCI!E76-SUMIFS(REGISTRO!$L$11:$L$1011,REGISTRO!$D$11:$D$1011,B76) -> 0 | F76: =SCI!F76-SUMIFS(REGISTRO!$J$11:$J$1011,REGISTRO!$D$11:$D$1011,B76) -> 0 | G76: =SCI!G76-SUMIFS(REGISTRO!$H$11:$H$1011,REGISTRO!$D$11:$D$1011,B76) -> 0 | H76: =SCI!H76-SUMIFS(REGISTRO!$F$11:$F$1011,REGISTRO!$D$11:$D$1011,B76) -> 0 | I76: =SUM(D76:H76) -> 0
A77: 67 | B77: ='DATI-CONDOMINIO'!A77 -> C67 | C77: ='DATI-CONDOMINIO'!B77 ->  | D77: =SCI!D77-SUMIFS(REGISTRO!$N$11:$N$1011,REGISTRO!$D$11:$D$1011,B77) -> 0 | E77: =SCI!E77-SUMIFS(REGISTRO!$L$11:$L$1011,REGISTRO!$D$11:$D$1011,B77) -> 0 | F77: =SCI!F77-SUMIFS(REGISTRO!$J$11:$J$1011,REGISTRO!$D$11:$D$1011,B77) -> 0 | G77: =SCI!G77-SUMIFS(REGISTRO!$H$11:$H$1011,REGISTRO!$D$11:$D$1011,B77) -> 0 | H77: =SCI!H77-SUMIFS(REGISTRO!$F$11:$F$1011,REGISTRO!$D$11:$D$1011,B77) -> 0 | I77: 0
A78: 68 | B78: ='DATI-CONDOMINIO'!A78 -> C68 | C78: ='DATI-CONDOMINIO'!B78 ->  | D78: =SCI!D78-SUMIFS(REGISTRO!$N$11:$N$1011,REGISTRO!$D$11:$D$1011,B78) -> 0 | E78: =SCI!E78-SUMIFS(REGISTRO!$L$11:$L$1011,REGISTRO!$D$11:$D$1011,B78) -> 0 | F78: =SCI!F78-SUMIFS(REGISTRO!$J$11:$J$1011,REGISTRO!$D$11:$D$1011,B78) -> 0 | G78: =SCI!G78-SUMIFS(REGISTRO!$H$11:$H$1011,REGISTRO!$D$11:$D$1011,B78) -> 0 | H78: =SCI!H78-SUMIFS(REGISTRO!$F$11:$F$1011,REGISTRO!$D$11:$D$1011,B78) -> 0 | I78: 0
A79: 69 | B79: ='DATI-CONDOMINIO'!A79 -> C69 | C79: ='DATI-CONDOMINIO'!B79 ->  | D79: =SCI!D79-SUMIFS(REGISTRO!$N$11:$N$1011,REGISTRO!$D$11:$D$1011,B79) -> 0 | E79: =SCI!E79-SUMIFS(REGISTRO!$L$11:$L$1011,REGISTRO!$D$11:$D$1011,B79) -> 0 | F79: =SCI!F79-SUMIFS(REGISTRO!$J$11:$J$1011,REGISTRO!$D$11:$D$1011,B79) -> 0 | G79: =SCI!G79-SUMIFS(REGISTRO!$H$11:$H$1011,REGISTRO!$D$11:$D$1011,B79) -> 0 | H79: =SCI!H79-SUMIFS(REGISTRO!$F$11:$F$1011,REGISTRO!$D$11:$D$1011,B79) -> 0 | I79: 0
A80: 70 | B80: ='DATI-CONDOMINIO'!A80 -> C70 | C80: ='DATI-CONDOMINIO'!B80 ->  | D80: =SCI!D80-SUMIFS(REGISTRO!$N$11:$N$1011,REGISTRO!$D$11:$D$1011,B80) -> 0 | E80: =SCI!E80-SUMIFS(REGISTRO!$L$11:$L$1011,REGISTRO!$D$11:$D$1011,B80) -> 0 | F80: =SCI!F80-SUMIFS(REGISTRO!$J$11:$J$1011,REGISTRO!$D$11:$D$1011,B80) -> 0 | G80: =SCI!G80-SUMIFS(REGISTRO!$H$11:$H$1011,REGISTRO!$D$11:$D$1011,B80) -> 0 | H80: =SCI!H80-SUMIFS(REGISTRO!$F$11:$F$1011,REGISTRO!$D$11:$D$1011,B80) -> 0 | I80: 0
A81: 71 | B81: ='DATI-CONDOMINIO'!A81 -> C71 | C81: ='DATI-CONDOMINIO'!B81 ->  | D81: =SCI!D81-SUMIFS(REGISTRO!$N$11:$N$1011,REGISTRO!$D$11:$D$1011,B81) -> 0 | E81: =SCI!E81-SUMIFS(REGISTRO!$L$11:$L$1011,REGISTRO!$D$11:$D$1011,B81) -> 0 | F81: =SCI!F81-SUMIFS(REGISTRO!$J$11:$J$1011,REGISTRO!$D$11:$D$1011,B81) -> 0 | G81: =SCI!G81-SUMIFS(REGISTRO!$H$11:$H$1011,REGISTRO!$D$11:$D$1011,B81) -> 0 | H81: =SCI!H81-SUMIFS(REGISTRO!$F$11:$F$1011,REGISTRO!$D$11:$D$1011,B81) -> 0 | I81: 0
A82: 72 | B82: ='DATI-CONDOMINIO'!A82 -> C72 | C82: ='DATI-CONDOMINIO'!B82 ->  | D82: =SCI!D82-SUMIFS(REGISTRO!$N$11:$N$1011,REGISTRO!$D$11:$D$1011,B82) -> 0 | E82: =SCI!E82-SUMIFS(REGISTRO!$L$11:$L$1011,REGISTRO!$D$11:$D$1011,B82) -> 0 | F82: =SCI!F82-SUMIFS(REGISTRO!$J$11:$J$1011,REGISTRO!$D$11:$D$1011,B82) -> 0 | G82: =SCI!G82-SUMIFS(REGISTRO!$H$11:$H$1011,REGISTRO!$D$11:$D$1011,B82) -> 0 | H82: =SCI!H82-SUMIFS(REGISTRO!$F$11:$F$1011,REGISTRO!$D$11:$D$1011,B82) -> 0 | I82: 0
A83: 73 | B83: ='DATI-CONDOMINIO'!A83 -> C73 | C83: ='DATI-CONDOMINIO'!B83 ->  | D83: =SCI!D83-SUMIFS(REGISTRO!$N$11:$N$1011,REGISTRO!$D$11:$D$1011,B83) -> 0 | E83: =SCI!E83-SUMIFS(REGISTRO!$L$11:$L$1011,REGISTRO!$D$11:$D$1011,B83) -> 0 | F83: =SCI!F83-SUMIFS(REGISTRO!$J$11:$J$1011,REGISTRO!$D$11:$D$1011,B83) -> 0 | G83: =SCI!G83-SUMIFS(REGISTRO!$H$11:$H$1011,REGISTRO!$D$11:$D$1011,B83) -> 0 | H83: =SCI!H83-SUMIFS(REGISTRO!$F$11:$F$1011,REGISTRO!$D$11:$D$1011,B83) -> 0 | I83: 0
A84: 74 | B84: ='DATI-CONDOMINIO'!A84 -> C74 | C84: ='DATI-CONDOMINIO'!B84 ->  | D84: =SCI!D84-SUMIFS(REGISTRO!$N$11:$N$1011,REGISTRO!$D$11:$D$1011,B84) -> 0 | E84: =SCI!E84-SUMIFS(REGISTRO!$L$11:$L$1011,REGISTRO!$D$11:$D$1011,B84) -> 0 | F84: =SCI!F84-SUMIFS(REGISTRO!$J$11:$J$1011,REGISTRO!$D$11:$D$1011,B84) -> 0 | G84: =SCI!G84-SUMIFS(REGISTRO!$H$11:$H$1011,REGISTRO!$D$11:$D$1011,B84) -> 0 | H84: =SCI!H84-SUMIFS(REGISTRO!$F$11:$F$1011,REGISTRO!$D$11:$D$1011,B84) -> 0 | I84: 0
A85: 75 | B85: ='DATI-CONDOMINIO'!A85 -> C75 | C85: ='DATI-CONDOMINIO'!B85 ->  | D85: =SCI!D85-SUMIFS(REGISTRO!$N$11:$N$1011,REGISTRO!$D$11:$D$1011,B85) -> 0 | E85: =SCI!E85-SUMIFS(REGISTRO!$L$11:$L$1011,REGISTRO!$D$11:$D$1011,B85) -> 0 | F85: =SCI!F85-SUMIFS(REGISTRO!$J$11:$J$1011,REGISTRO!$D$11:$D$1011,B85) -> 0 | G85: =SCI!G85-SUMIFS(REGISTRO!$H$11:$H$1011,REGISTRO!$D$11:$D$1011,B85) -> 0 | H85: =SCI!H85-SUMIFS(REGISTRO!$F$11:$F$1011,REGISTRO!$D$11:$D$1011,B85) -> 0 | I85: 0
A86: 76 | B86: ='DATI-CONDOMINIO'!A86 -> C76 | C86: ='DATI-CONDOMINIO'!B86 ->  | D86: =SCI!D86-SUMIFS(REGISTRO!$N$11:$N$1011,REGISTRO!$D$11:$D$1011,B86) -> 0 | E86: =SCI!E86-SUMIFS(REGISTRO!$L$11:$L$1011,REGISTRO!$D$11:$D$1011,B86) -> 0 | F86: =SCI!F86-SUMIFS(REGISTRO!$J$11:$J$1011,REGISTRO!$D$11:$D$1011,B86) -> 0 | G86: =SCI!G86-SUMIFS(REGISTRO!$H$11:$H$1011,REGISTRO!$D$11:$D$1011,B86) -> 0 | H86: =SCI!H86-SUMIFS(REGISTRO!$F$11:$F$1011,REGISTRO!$D$11:$D$1011,B86) -> 0 | I86: 0
A87: 77 | B87: ='DATI-CONDOMINIO'!A87 -> C77 | C87: ='DATI-CONDOMINIO'!B87 ->  | D87: =SCI!D87-SUMIFS(REGISTRO!$N$11:$N$1011,REGISTRO!$D$11:$D$1011,B87) -> 0 | E87: =SCI!E87-SUMIFS(REGISTRO!$L$11:$L$1011,REGISTRO!$D$11:$D$1011,B87) -> 0 | F87: =SCI!F87-SUMIFS(REGISTRO!$J$11:$J$1011,REGISTRO!$D$11:$D$1011,B87) -> 0 | G87: =SCI!G87-SUMIFS(REGISTRO!$H$11:$H$1011,REGISTRO!$D$11:$D$1011,B87) -> 0 | H87: =SCI!H87-SUMIFS(REGISTRO!$F$11:$F$1011,REGISTRO!$D$11:$D$1011,B87) -> 0 | I87: 0
A88: 78 | B88: ='DATI-CONDOMINIO'!A88 -> C78 | C88: ='DATI-CONDOMINIO'!B88 ->  | D88: =SCI!D88-SUMIFS(REGISTRO!$N$11:$N$1011,REGISTRO!$D$11:$D$1011,B88) -> 0 | E88: =SCI!E88-SUMIFS(REGISTRO!$L$11:$L$1011,REGISTRO!$D$11:$D$1011,B88) -> 0 | F88: =SCI!F88-SUMIFS(REGISTRO!$J$11:$J$1011,REGISTRO!$D$11:$D$1011,B88) -> 0 | G88: =SCI!G88-SUMIFS(REGISTRO!$H$11:$H$1011,REGISTRO!$D$11:$D$1011,B88) -> 0 | H88: =SCI!H88-SUMIFS(REGISTRO!$F$11:$F$1011,REGISTRO!$D$11:$D$1011,B88) -> 0 | I88: 0
A89: 79 | B89: ='DATI-CONDOMINIO'!A89 -> C79 | C89: ='DATI-CONDOMINIO'!B89 ->  | D89: =SCI!D89-SUMIFS(REGISTRO!$N$11:$N$1011,REGISTRO!$D$11:$D$1011,B89) -> 0 | E89: =SCI!E89-SUMIFS(REGISTRO!$L$11:$L$1011,REGISTRO!$D$11:$D$1011,B89) -> 0 | F89: =SCI!F89-SUMIFS(REGISTRO!$J$11:$J$1011,REGISTRO!$D$11:$D$1011,B89) -> 0 | G89: =SCI!G89-SUMIFS(REGISTRO!$H$11:$H$1011,REGISTRO!$D$11:$D$1011,B89) -> 0 | H89: =SCI!H89-SUMIFS(REGISTRO!$F$11:$F$1011,REGISTRO!$D$11:$D$1011,B89) -> 0 | I89: 0
A90: 80 | B90: ='DATI-CONDOMINIO'!A90 -> C80 | C90: ='DATI-CONDOMINIO'!B90 ->  | D90: =SCI!D90-SUMIFS(REGISTRO!$N$11:$N$1011,REGISTRO!$D$11:$D$1011,B90) -> 0 | E90: =SCI!E90-SUMIFS(REGISTRO!$L$11:$L$1011,REGISTRO!$D$11:$D$1011,B90) -> 0 | F90: =SCI!F90-SUMIFS(REGISTRO!$J$11:$J$1011,REGISTRO!$D$11:$D$1011,B90) -> 0 | G90: =SCI!G90-SUMIFS(REGISTRO!$H$11:$H$1011,REGISTRO!$D$11:$D$1011,B90) -> 0 | H90: =SCI!H90-SUMIFS(REGISTRO!$F$11:$F$1011,REGISTRO!$D$11:$D$1011,B90) -> 0 | I90: 0
A91: 81 | B91: ='DATI-CONDOMINIO'!A91 -> C81 | C91: ='DATI-CONDOMINIO'!B91 ->  | D91: =SCI!D91-SUMIFS(REGISTRO!$N$11:$N$1011,REGISTRO!$D$11:$D$1011,B91) -> 0 | E91: =SCI!E91-SUMIFS(REGISTRO!$L$11:$L$1011,REGISTRO!$D$11:$D$1011,B91) -> 0 | F91: =SCI!F91-SUMIFS(REGISTRO!$J$11:$J$1011,REGISTRO!$D$11:$D$1011,B91) -> 0 | G91: =SCI!G91-SUMIFS(REGISTRO!$H$11:$H$1011,REGISTRO!$D$11:$D$1011,B91) -> 0 | H91: =SCI!H91-SUMIFS(REGISTRO!$F$11:$F$1011,REGISTRO!$D$11:$D$1011,B91) -> 0 | I91: 0
A92: 82 | B92: ='DATI-CONDOMINIO'!A92 -> C82 | C92: ='DATI-CONDOMINIO'!B92 ->  | D92: =SCI!D92-SUMIFS(REGISTRO!$N$11:$N$1011,REGISTRO!$D$11:$D$1011,B92) -> 0 | E92: =SCI!E92-SUMIFS(REGISTRO!$L$11:$L$1011,REGISTRO!$D$11:$D$1011,B92) -> 0 | F92: =SCI!F92-SUMIFS(REGISTRO!$J$11:$J$1011,REGISTRO!$D$11:$D$1011,B92) -> 0 | G92: =SCI!G92-SUMIFS(REGISTRO!$H$11:$H$1011,REGISTRO!$D$11:$D$1011,B92) -> 0 | H92: =SCI!H92-SUMIFS(REGISTRO!$F$11:$F$1011,REGISTRO!$D$11:$D$1011,B92) -> 0 | I92: 0
A93: 83 | B93: ='DATI-CONDOMINIO'!A93 -> C83 | C93: ='DATI-CONDOMINIO'!B93 ->  | D93: =SCI!D93-SUMIFS(REGISTRO!$N$11:$N$1011,REGISTRO!$D$11:$D$1011,B93) -> 0 | E93: =SCI!E93-SUMIFS(REGISTRO!$L$11:$L$1011,REGISTRO!$D$11:$D$1011,B93) -> 0 | F93: =SCI!F93-SUMIFS(REGISTRO!$J$11:$J$1011,REGISTRO!$D$11:$D$1011,B93) -> 0 | G93: =SCI!G93-SUMIFS(REGISTRO!$H$11:$H$1011,REGISTRO!$D$11:$D$1011,B93) -> 0 | H93: =SCI!H93-SUMIFS(REGISTRO!$F$11:$F$1011,REGISTRO!$D$11:$D$1011,B93) -> 0 | I93: 0
A94: 84 | B94: ='DATI-CONDOMINIO'!A94 -> C84 | C94: ='DATI-CONDOMINIO'!B94 ->  | D94: =SCI!D94-SUMIFS(REGISTRO!$N$11:$N$1011,REGISTRO!$D$11:$D$1011,B94) -> 0 | E94: =SCI!E94-SUMIFS(REGISTRO!$L$11:$L$1011,REGISTRO!$D$11:$D$1011,B94) -> 0 | F94: =SCI!F94-SUMIFS(REGISTRO!$J$11:$J$1011,REGISTRO!$D$11:$D$1011,B94) -> 0 | G94: =SCI!G94-SUMIFS(REGISTRO!$H$11:$H$1011,REGISTRO!$D$11:$D$1011,B94) -> 0 | H94: =SCI!H94-SUMIFS(REGISTRO!$F$11:$F$1011,REGISTRO!$D$11:$D$1011,B94) -> 0 | I94: 0
A95: 85 | B95: ='DATI-CONDOMINIO'!A95 -> C85 | C95: ='DATI-CONDOMINIO'!B95 ->  | D95: =SCI!D95-SUMIFS(REGISTRO!$N$11:$N$1011,REGISTRO!$D$11:$D$1011,B95) -> 0 | E95: =SCI!E95-SUMIFS(REGISTRO!$L$11:$L$1011,REGISTRO!$D$11:$D$1011,B95) -> 0 | F95: =SCI!F95-SUMIFS(REGISTRO!$J$11:$J$1011,REGISTRO!$D$11:$D$1011,B95) -> 0 | G95: =SCI!G95-SUMIFS(REGISTRO!$H$11:$H$1011,REGISTRO!$D$11:$D$1011,B95) -> 0 | H95: =SCI!H95-SUMIFS(REGISTRO!$F$11:$F$1011,REGISTRO!$D$11:$D$1011,B95) -> 0 | I95: 0
A96: 86 | B96: ='DATI-CONDOMINIO'!A96 -> C86 | C96: ='DATI-CONDOMINIO'!B96 ->  | D96: =SCI!D96-SUMIFS(REGISTRO!$N$11:$N$1011,REGISTRO!$D$11:$D$1011,B96) -> 0 | E96: =SCI!E96-SUMIFS(REGISTRO!$L$11:$L$1011,REGISTRO!$D$11:$D$1011,B96) -> 0 | F96: =SCI!F96-SUMIFS(REGISTRO!$J$11:$J$1011,REGISTRO!$D$11:$D$1011,B96) -> 0 | G96: =SCI!G96-SUMIFS(REGISTRO!$H$11:$H$1011,REGISTRO!$D$11:$D$1011,B96) -> 0 | H96: =SCI!H96-SUMIFS(REGISTRO!$F$11:$F$1011,REGISTRO!$D$11:$D$1011,B96) -> 0 | I96: 0
A97: 87 | B97: ='DATI-CONDOMINIO'!A97 -> C87 | C97: ='DATI-CONDOMINIO'!B97 ->  | D97: =SCI!D97-SUMIFS(REGISTRO!$N$11:$N$1011,REGISTRO!$D$11:$D$1011,B97) -> 0 | E97: =SCI!E97-SUMIFS(REGISTRO!$L$11:$L$1011,REGISTRO!$D$11:$D$1011,B97) -> 0 | F97: =SCI!F97-SUMIFS(REGISTRO!$J$11:$J$1011,REGISTRO!$D$11:$D$1011,B97) -> 0 | G97: =SCI!G97-SUMIFS(REGISTRO!$H$11:$H$1011,REGISTRO!$D$11:$D$1011,B97) -> 0 | H97: =SCI!H97-SUMIFS(REGISTRO!$F$11:$F$1011,REGISTRO!$D$11:$D$1011,B97) -> 0 | I97: 0
A98: 88 | B98: ='DATI-CONDOMINIO'!A98 -> C88 | C98: ='DATI-CONDOMINIO'!B98 ->  | D98: =SCI!D98-SUMIFS(REGISTRO!$N$11:$N$1011,REGISTRO!$D$11:$D$1011,B98) -> 0 | E98: =SCI!E98-SUMIFS(REGISTRO!$L$11:$L$1011,REGISTRO!$D$11:$D$1011,B98) -> 0 | F98: =SCI!F98-SUMIFS(REGISTRO!$J$11:$J$1011,REGISTRO!$D$11:$D$1011,B98) -> 0 | G98: =SCI!G98-SUMIFS(REGISTRO!$H$11:$H$1011,REGISTRO!$D$11:$D$1011,B98) -> 0 | H98: =SCI!H98-SUMIFS(REGISTRO!$F$11:$F$1011,REGISTRO!$D$11:$D$1011,B98) -> 0 | I98: 0
A99: 89 | B99: ='DATI-CONDOMINIO'!A99 -> C89 | C99: ='DATI-CONDOMINIO'!B99 ->  | D99: =SCI!D99-SUMIFS(REGISTRO!$N$11:$N$1011,REGISTRO!$D$11:$D$1011,B99) -> 0 | E99: =SCI!E99-SUMIFS(REGISTRO!$L$11:$L$1011,REGISTRO!$D$11:$D$1011,B99) -> 0 | F99: =SCI!F99-SUMIFS(REGISTRO!$J$11:$J$1011,REGISTRO!$D$11:$D$1011,B99) -> 0 | G99: =SCI!G99-SUMIFS(REGISTRO!$H$11:$H$1011,REGISTRO!$D$11:$D$1011,B99) -> 0 | H99: =SCI!H99-SUMIFS(REGISTRO!$F$11:$F$1011,REGISTRO!$D$11:$D$1011,B99) -> 0 | I99: 0
A100: 90 | B100: ='DATI-CONDOMINIO'!A100 -> C90 | C100: ='DATI-CONDOMINIO'!B100 ->  | D100: =SCI!D100-SUMIFS(REGISTRO!$N$11:$N$1011,REGISTRO!$D$11:$D$1011,B100) -> 0 | E100: =SCI!E100-SUMIFS(REGISTRO!$L$11:$L$1011,REGISTRO!$D$11:$D$1011,B100) -> 0 | F100: =SCI!F100-SUMIFS(REGISTRO!$J$11:$J$1011,REGISTRO!$D$11:$D$1011,B100) -> 0 | G100: =SCI!G100-SUMIFS(REGISTRO!$H$11:$H$1011,REGISTRO!$D$11:$D$1011,B100) -> 0 | H100: =SCI!H100-SUMIFS(REGISTRO!$F$11:$F$1011,REGISTRO!$D$11:$D$1011,B100) -> 0 | I100: 0
A101: 91 | B101: ='DATI-CONDOMINIO'!A101 -> C91 | C101: ='DATI-CONDOMINIO'!B101 ->  | D101: =SCI!D101-SUMIFS(REGISTRO!$N$11:$N$1011,REGISTRO!$D$11:$D$1011,B101) -> 0 | E101: =SCI!E101-SUMIFS(REGISTRO!$L$11:$L$1011,REGISTRO!$D$11:$D$1011,B101) -> 0 | F101: =SCI!F101-SUMIFS(REGISTRO!$J$11:$J$1011,REGISTRO!$D$11:$D$1011,B101) -> 0 | G101: =SCI!G101-SUMIFS(REGISTRO!$H$11:$H$1011,REGISTRO!$D$11:$D$1011,B101) -> 0 | H101: =SCI!H101-SUMIFS(REGISTRO!$F$11:$F$1011,REGISTRO!$D$11:$D$1011,B101) -> 0 | I101: 0
A102: 92 | B102: ='DATI-CONDOMINIO'!A102 -> C92 | C102: ='DATI-CONDOMINIO'!B102 ->  | D102: =SCI!D102-SUMIFS(REGISTRO!$N$11:$N$1011,REGISTRO!$D$11:$D$1011,B102) -> 0 | E102: =SCI!E102-SUMIFS(REGISTRO!$L$11:$L$1011,REGISTRO!$D$11:$D$1011,B102) -> 0 | F102: =SCI!F102-SUMIFS(REGISTRO!$J$11:$J$1011,REGISTRO!$D$11:$D$1011,B102) -> 0 | G102: =SCI!G102-SUMIFS(REGISTRO!$H$11:$H$1011,REGISTRO!$D$11:$D$1011,B102) -> 0 | H102: =SCI!H102-SUMIFS(REGISTRO!$F$11:$F$1011,REGISTRO!$D$11:$D$1011,B102) -> 0 | I102: 0
A103: 93 | B103: ='DATI-CONDOMINIO'!A103 -> C93 | C103: ='DATI-CONDOMINIO'!B103 ->  | D103: =SCI!D103-SUMIFS(REGISTRO!$N$11:$N$1011,REGISTRO!$D$11:$D$1011,B103) -> 0 | E103: =SCI!E103-SUMIFS(REGISTRO!$L$11:$L$1011,REGISTRO!$D$11:$D$1011,B103) -> 0 | F103: =SCI!F103-SUMIFS(REGISTRO!$J$11:$J$1011,REGISTRO!$D$11:$D$1011,B103) -> 0 | G103: =SCI!G103-SUMIFS(REGISTRO!$H$11:$H$1011,REGISTRO!$D$11:$D$1011,B103) -> 0 | H103: =SCI!H103-SUMIFS(REGISTRO!$F$11:$F$1011,REGISTRO!$D$11:$D$1011,B103) -> 0 | I103: 0
A104: 94 | B104: ='DATI-CONDOMINIO'!A104 -> C94 | C104: ='DATI-CONDOMINIO'!B104 ->  | D104: =SCI!D104-SUMIFS(REGISTRO!$N$11:$N$1011,REGISTRO!$D$11:$D$1011,B104) -> 0 | E104: =SCI!E104-SUMIFS(REGISTRO!$L$11:$L$1011,REGISTRO!$D$11:$D$1011,B104) -> 0 | F104: =SCI!F104-SUMIFS(REGISTRO!$J$11:$J$1011,REGISTRO!$D$11:$D$1011,B104) -> 0 | G104: =SCI!G104-SUMIFS(REGISTRO!$H$11:$H$1011,REGISTRO!$D$11:$D$1011,B104) -> 0 | H104: =SCI!H104-SUMIFS(REGISTRO!$F$11:$F$1011,REGISTRO!$D$11:$D$1011,B104) -> 0 | I104: 0
A105: 95 | B105: ='DATI-CONDOMINIO'!A105 -> C95 | C105: ='DATI-CONDOMINIO'!B105 ->  | D105: =SCI!D105-SUMIFS(REGISTRO!$N$11:$N$1011,REGISTRO!$D$11:$D$1011,B105) -> 0 | E105: =SCI!E105-SUMIFS(REGISTRO!$L$11:$L$1011,REGISTRO!$D$11:$D$1011,B105) -> 0 | F105: =SCI!F105-SUMIFS(REGISTRO!$J$11:$J$1011,REGISTRO!$D$11:$D$1011,B105) -> 0 | G105: =SCI!G105-SUMIFS(REGISTRO!$H$11:$H$1011,REGISTRO!$D$11:$D$1011,B105) -> 0 | H105: =SCI!H105-SUMIFS(REGISTRO!$F$11:$F$1011,REGISTRO!$D$11:$D$1011,B105) -> 0 | I105: 0
A106: 96 | B106: ='DATI-CONDOMINIO'!A106 -> C96 | C106: ='DATI-CONDOMINIO'!B106 ->  | D106: =SCI!D106-SUMIFS(REGISTRO!$N$11:$N$1011,REGISTRO!$D$11:$D$1011,B106) -> 0 | E106: =SCI!E106-SUMIFS(REGISTRO!$L$11:$L$1011,REGISTRO!$D$11:$D$1011,B106) -> 0 | F106: =SCI!F106-SUMIFS(REGISTRO!$J$11:$J$1011,REGISTRO!$D$11:$D$1011,B106) -> 0 | G106: =SCI!G106-SUMIFS(REGISTRO!$H$11:$H$1011,REGISTRO!$D$11:$D$1011,B106) -> 0 | H106: =SCI!H106-SUMIFS(REGISTRO!$F$11:$F$1011,REGISTRO!$D$11:$D$1011,B106) -> 0 | I106: 0
A107: 97 | B107: ='DATI-CONDOMINIO'!A107 -> C97 | C107: ='DATI-CONDOMINIO'!B107 ->  | D107: =SCI!D107-SUMIFS(REGISTRO!$N$11:$N$1011,REGISTRO!$D$11:$D$1011,B107) -> 0 | E107: =SCI!E107-SUMIFS(REGISTRO!$L$11:$L$1011,REGISTRO!$D$11:$D$1011,B107) -> 0 | F107: =SCI!F107-SUMIFS(REGISTRO!$J$11:$J$1011,REGISTRO!$D$11:$D$1011,B107) -> 0 | G107: =SCI!G107-SUMIFS(REGISTRO!$H$11:$H$1011,REGISTRO!$D$11:$D$1011,B107) -> 0 | H107: =SCI!H107-SUMIFS(REGISTRO!$F$11:$F$1011,REGISTRO!$D$11:$D$1011,B107) -> 0 | I107: 0
A108: 98 | B108: ='DATI-CONDOMINIO'!A108 -> C98 | C108: ='DATI-CONDOMINIO'!B108 ->  | D108: =SCI!D108-SUMIFS(REGISTRO!$N$11:$N$1011,REGISTRO!$D$11:$D$1011,B108) -> 0 | E108: =SCI!E108-SUMIFS(REGISTRO!$L$11:$L$1011,REGISTRO!$D$11:$D$1011,B108) -> 0 | F108: =SCI!F108-SUMIFS(REGISTRO!$J$11:$J$1011,REGISTRO!$D$11:$D$1011,B108) -> 0 | G108: =SCI!G108-SUMIFS(REGISTRO!$H$11:$H$1011,REGISTRO!$D$11:$D$1011,B108) -> 0 | H108: =SCI!H108-SUMIFS(REGISTRO!$F$11:$F$1011,REGISTRO!$D$11:$D$1011,B108) -> 0 | I108: 0
A109: 99 | B109: ='DATI-CONDOMINIO'!A109 -> C99 | C109: ='DATI-CONDOMINIO'!B109 ->  | D109: =SCI!D109-SUMIFS(REGISTRO!$N$11:$N$1011,REGISTRO!$D$11:$D$1011,B109) -> 0 | E109: =SCI!E109-SUMIFS(REGISTRO!$L$11:$L$1011,REGISTRO!$D$11:$D$1011,B109) -> 0 | F109: =SCI!F109-SUMIFS(REGISTRO!$J$11:$J$1011,REGISTRO!$D$11:$D$1011,B109) -> 0 | G109: =SCI!G109-SUMIFS(REGISTRO!$H$11:$H$1011,REGISTRO!$D$11:$D$1011,B109) -> 0 | H109: =SCI!H109-SUMIFS(REGISTRO!$F$11:$F$1011,REGISTRO!$D$11:$D$1011,B109) -> 0 | I109: 0
A110: TOTALI | D110: =SUM(D11:D109) -> 0 | E110: 0 | F110: 608.33 | G110: 2468.8 | H110: 9540.62 | I110: 12617.75

Sheet NOTA (hidden)
F2: Note sulla Ricevuta o Quietanza di pagamento.
G4: La ricevuta di pagamento o quietanza attesta che una persona ha pagato e un'altra ha incassato una determinata somma di denaro. Al momento del pagamento al condomino che paga l'amministratore deve essere fornita la ricevuta che attesti quanto versato; quello alla quietanza, infatti, è un vero e proprio diritto riconosciuto dalla legge (art. 1199 c.c.). Nella ricevuta, l'amministratore o chi per lui dovranno indicare a che titolo sono versate le somme di denaro [la c.d. imputazione di pagamento]. Così, ad esempio, se il condomino corrisponde all'amministratore le quote relative ad una o più mensilità quest'ultimo dovrà indicare nella ricevuta di pagamento i mesi di riferimento delle somme versate. Se, invece, il condomino si limita a pagare una somma forfettaria l'amministratore potrà indicare un versamento di un acconto o in conto di qualcosa. Si rammenta l'art. 1195 c.c. per il quale: chi, avendo più debiti, accetta una quietanza nella quale il creditore ha dichiarato di imputare il pagamento a uno di essi, non può pretendere un'imputazione diversa, se non vi è stato dolo da parte del creditore. In pratica nell'assenza di un'imputazione del pagamento da parte del condomino debitore il creditore (ovvero il condominio, nella persona dell'amministratore) può imputare autonomamente ad uno dei debiti senza che il primo, eccezion fatta per i casi di malafede del secondo, possa obiettare nulla. Delle ricevute di pagamento è sempre bene conservare copia per tutto il tempo necessario alla maturazione della prescrizione dei relativi crediti. Nel caso di versamento tramite bonifico bancario l'imputazione del pagamento corrisponde alla causale dello stesso bonifico. Anche nel caso di bonifico il condomino ha diritto alla quietanza firmata dall'amministratore, in quanto la ricevuta del bonifico è solamente un'attestazione che la banca ha eseguito l'operazione ordinata. Nel caso di bonifico, la successiva ricevuta può correggere eventuali errori o vaghezze nella causale indicata dal condomino ordinante. Il condomino che riceve la ricevuta con le correzioni accetta tali correzioni se contesta quanto ricevuto. Se l'amministratore non rilascia ricevuta di pagamento, in primis il condomino deve comunque sincerarsi che le somme siano inserite nella contabilità del condominio – nei modi e nei termini di legge – chiedendo accesso alla documentazione condominiale ; così non fosse si avrebbe il reato di appropriazione indebita a carico dell'amministratore. Qualora fosse tutto in regola, il condomino dovrebbe inviare all'amministratore una lettera di diffida al fine di ottenere quanto dovuto e nel caso di perduranza attivarsi per chiedere la revoca (eventualmente anche in via giudiziale), per irregolarità nella gestione.
